Workbook

Sheet Input
B1: LOADCHECK - R form calculation sheet - | G1: =IF('R Form'!O16="","",'R Form'!O16) ->  | M1: ='R Form'!E68 -> Version3 (11/02/2014) | BA1: Please Select From List... | BB1: Please Select From List...(see Note*)
U2: TRUE | V2: SOEDC RELATED | X2: =VLOOKUP(T13,U2:V3,2,0) -> 0 | BA2: Proposed | BB2: Automation
D3: Scheme Name and address: | E3: =AM21 -> Stagecoach Sharston Depot, Leestone Road, Wythenshawe, Manchester | K3: Date: | L3: 2019-07-31 | U3: FALSE | BA3: Committed | BB3: Diversion
D4: Post Code | E4: M22 4RB | K4: Scheme number: | L4: =AL21 -> 5500153017A | BA4: Cancelled | BB4: Sw Gr Change
L5: =IF((L6-L8)>999,"G&P STUDY REQUIRED","") -> G&P STUDY REQUIRED | BA5: Completed | BB5: ESQCR
D6: Design engineer | E6: =IF(BM21="","Please Select Name",AX21) -> Peter Range | G6: Tel: | H6: =VLOOKUP(E6,data!O2:R150,2,0) -> 22018 | K6: Proposed MIC: | L6: 1500 | N6: Proposed MEC: | O6: =AZ21 -> 0 | P6: kVA | BB6: Generation (Storage)
D7: Strategic planning engineer | E7: =IF(BM21="","Please Select Name",BM21) -> Ian Walker | G7: Tel: | H7: =VLOOKUP(E7,data!O3:R151,2,0) -> 22931 | K7: Existing MIC: | L7: 120 | N7: Existing MEC: | P7: kVA | AI7: N-1 | BB7: Generation (No Storage)
K8: Existing demand of customer: | L8: 107 | M8: kVA | AI8: N-0 | BB8: Reinforcement
D9: Status | E9: Proposed | G9: =IF(E9="Please Select From List...","REQUIRED FIELD","") ->  | I9: Additional load on network: | L9: =L6-L8 -> 1393 | M9: kVA | U9: =VLOOKUP(E19,data!G1:H2,2,0) -> 6600 | V9: =IF(U9=6600,6.6,11) -> 6.6 | BB9: NOP move
D10: Type | E10: Add Load | G10: =IF(E10="Please Select From List...(see Note*)","REQUIRED FIELD","") ->  | L10: =IF(L6="","",SUM((L6-L8)*1000)/(U9*SQRT(3))) -> 121.8558977 | M10: Amps | BB10: Asset Removal
BB11: Add Load
D12: Distribution Sub No. | E12: 178413 | G12: OR adj. No. for feeder identification | I12: Application Start Date | L12: =AP21 -> 2019-06-22 | N12: for interactivity purposes | BB12: New Connection IDNO (domestic)
D13: Circuit | E13: =VLOOKUP(E12,'HV Circuit Lookup DATA'!A:B,2,FALSE) -> F4500 LEESTONE RD | K13: Interactive with other schemes? | L13: Yes | M13: Supply details here | T13: FALSE | BB13: New Connection IDNO (I&C)
B14: Primary Substation the load will be connected on | E14: =VLOOKUP(E12,'HV Circuit Lookup DATA'!A:D,3,FALSE) -> NORTHENDEN | K14: Number of customers accociated with this connection: | M14: Consumers | Y14: =VLOOKUP(E14,data!A2:C402,3,0) -> 0 | BB14: New Connection Stat (domestic)
BB15: New Connection Stat (I&C)
D16: HV diagram area | E16: =VLOOKUP(E14,data!A2:E402,4,0) -> MANCHESTER SOUTH | BB16: New Connection ICP (domestic)
D17: Reinforcement charge | E17: =VLOOKUP(E14,data!A2:C370,2,0) -> 0 | F17: per kVA | T17: YES | U17: =L10 -> 121.8558977 | V17: =L14 -> 0 | BB17: New Connection ICP (I&C)
D18: Customer charge | E18: =SUM(E17*(L6-L7)) -> 0 | T18: NO | U18: 0 | V18: 0
D19: Voltage | E19: =VLOOKUP(E14,data!A5:E405,5,0) -> 6.6kV | K19: Demand Connection Type | L19: N-1
K20: Generation Connection Type | AJ20: This row is for Strategic Planning use only : paste the whole row here (paste values)
AJ21: 5500153017 | AK21: A | AL21: 5500153017A | AM21: Stagecoach Sharston Depot, Leestone Road, Wythenshawe, Manchester | AN21: Pending for Approval | AO21: 580000084470 | AP21: 2019-06-22 | AQ21: 10 | AR21: 2019-07-01 | AS21: 35 | AT21: 2019-08-07 | AU21: 11 | AV21: DDD-HVHV | AW21: HV Demand Connection with assoc HV work | AX21: Peter Range | AY21: 1500 | AZ21: 0 | BA21: 383472 | BB21: 388998 | BC21: M22 4RB | BD21: South | BE21: None | BF21: HV POC | BG21: EHV ASSESSMENT | BH21: None | BI21: HV Work | BJ21: EHV Work | BK21: Dem | BL21: Do Not Self Assign | BM21: Ian Walker | BP21: SK | BQ21: 00:00:00
B22: *Note: Please select Domestic if the domestic component is greater than 50% of the total, and I&C if it is greater than 50% of the total
B23: Feeder name: | F23: Cable type (1st section): | G23: Primary CB / CT rating or other restriction * : | H23: Normal peak load (FLA): | I23: Customer numbers on feeder: | J23: New load to be connected to this feeder: | K23: Unused ASC on this feeder: | L23: Proposed Customers on feeder: | M23: Total feeder load: | N23: Spare amps (Distribution): | O23: Spare amps (Cyclic): | P23: Spare amps (Continuous): | T23: Load | U23: Customers | V23: Cable Dist | W23: Cable Cyc | X23: Cable Cont | Y23: CB | Z23: Rating Dist: | AA23: Rating cyc | AB23: Rating cont
B24: Northenden: F4500 Leestone Rd | F24: 300 Al PILC | G24: 600 | H24: 55 | I24: 6 | J24: YES | K24: ='Unused ASC Allowance'!G12 -> 43.73865676 | L24: =IF(J24="","",SUM(I24+U24)) -> 6 | M24: =IF(J24="","",SUM(H24+K24+T24)) -> 220.5945545 | N24: =IF(J24="","",Z24-M24) -> 304.4054455 | O24: =IF(J24="","",AA24-M24) -> 189.4054455 | P24: =IF(J24="","",AB24-M24) -> 144.4054455 | T24: =VLOOKUP(J24,$T$17:$V$18,2,0) -> 121.8558977 | U24: =VLOOKUP(J24,$T$17:$V$18,3,0) -> 0 | V24: =VLOOKUP(F24,data!$J$2:$M$38,4,0) -> 525 | W24: =VLOOKUP(F24,data!$J$2:$M$38,3,0) -> 410 | X24: =VLOOKUP(F24,data!$J$2:$M$38,2,0) -> 365 | Y24: =G24 -> 600 | Z24: =MIN(V24,Y24) -> 525 | AA24: =MIN(W24,Y24) -> 410 | AB24: =MIN(X24,Y24) -> 365
B25: Northenden: F1887 Royal Green Rd | F25: 0.5 Al PILC | G25: 400 | H25: 175 | I25: 1255 | J25: NO | K25: ='Unused ASC Allowance'!G23 -> 0 | L25: =IF(J25="","",SUM(I25+U25)) -> 1255 | M25: =IF(J25="","",SUM(H25+K25+T25)) -> 175 | N25: =IF(J25="","",Z25-M25) -> 225 | O25: =IF(J25="","",AA25-M25) -> 225 | P25: =IF(J25="","",AB25-M25) -> 225 | T25: =VLOOKUP(J25,$T$17:$V$18,2,0) -> 0 | U25: =VLOOKUP(J25,$T$17:$V$18,3,0) -> 0 | V25: =VLOOKUP(F25,data!$J$2:$M$38,4,0) -> 530 | W25: =VLOOKUP(F25,data!$J$2:$M$38,3,0) -> 475 | X25: =VLOOKUP(F25,data!$J$2:$M$38,2,0) -> 420 | Y25: 400 | Z25: =MIN(V25,Y25) -> 400 | AA25: =MIN(W25,Y25) -> 400 | AB25: =MIN(X25,Y25) -> 400
B26: Gatley: F2083 Church Rd (Gatley) | F26: 0.5 Al PILC | G26: 400 | H26: 193 | I26: 1411 | J26: NO | K26: ='Unused ASC Allowance'!G34 -> 0 | L26: =IF(J26="","",SUM(I26+U26)) -> 1411 | M26: =IF(J26="","",SUM(H26+K26+T26)) -> 193 | N26: 207 | O26: 207 | P26: 207 | T26: 0 | U26: 0 | V26: =VLOOKUP(F26,data!$J$2:$M$38,4,0) -> 530 | W26: =VLOOKUP(F26,data!$J$2:$M$38,3,0) -> 475 | X26: =VLOOKUP(F26,data!$J$2:$M$38,2,0) -> 420 | Y26: 400 | Z26: 400 | AA26: 400 | AB26: 400
K27: ='Unused ASC Allowance'!G45 -> 0 | L27: =IF(J27="","",SUM(I27+U27)) ->  | V27: =VLOOKUP(F27,data!$J$2:$M$38,4,0) ->  | W27: =VLOOKUP(F27,data!$J$2:$M$38,3,0) ->  | X27: =VLOOKUP(F27,data!$J$2:$M$38,2,0) ->  | Y27: 0
B28: . | K28: ='Unused ASC Allowance'!G56 -> 0 | V28: =VLOOKUP(F28,data!$J$2:$M$38,4,0) ->  | W28: =VLOOKUP(F28,data!$J$2:$M$38,3,0) ->  | X28: =VLOOKUP(F28,data!$J$2:$M$38,2,0) ->  | Y28: 0
B29: . | K29: ='Unused ASC Allowance'!G67 -> 0 | V29: =VLOOKUP(F29,data!$J$2:$M$38,4,0) ->  | W29: =VLOOKUP(F29,data!$J$2:$M$38,3,0) ->  | X29: =VLOOKUP(F29,data!$J$2:$M$38,2,0) ->  | Y29: 0
B30: . | K30: ='Unused ASC Allowance'!G78 -> 0 | V30: =VLOOKUP(F30,data!$J$2:$M$38,4,0) ->  | W30: =VLOOKUP(F30,data!$J$2:$M$38,3,0) ->  | X30: =VLOOKUP(F30,data!$J$2:$M$38,2,0) ->  | Y30: 0
B31: . | K31: ='Unused ASC Allowance'!G89 -> 0 | V31: =VLOOKUP(F31,data!$J$2:$M$38,4,0) ->  | W31: =VLOOKUP(F31,data!$J$2:$M$38,3,0) ->  | X31: =VLOOKUP(F31,data!$J$2:$M$38,2,0) ->  | Y31: 0
B32: . | K32: ='Unused ASC Allowance'!G100 -> 0 | V32: =VLOOKUP(F32,data!$J$2:$M$38,4,0) ->  | W32: =VLOOKUP(F32,data!$J$2:$M$38,3,0) ->  | X32: =VLOOKUP(F32,data!$J$2:$M$38,2,0) ->  | Y32: 0
B33: . | K33: ='Unused ASC Allowance'!G111 -> 0 | V33: =VLOOKUP(F33,data!$J$2:$M$38,4,0) ->  | W33: =VLOOKUP(F33,data!$J$2:$M$38,3,0) ->  | X33: =VLOOKUP(F33,data!$J$2:$M$38,2,0) ->  | Y33: 0
B34: . | K34: ='Unused ASC Allowance'!G122 -> 0 | V34: =VLOOKUP(F34,data!$J$2:$M$38,4,0) ->  | W34: =VLOOKUP(F34,data!$J$2:$M$38,3,0) ->  | X34: =VLOOKUP(F34,data!$J$2:$M$38,2,0) ->  | Y34: 0
B35: . | K35: ='Unused ASC Allowance'!G133 -> 0 | V35: =VLOOKUP(F35,data!$J$2:$M$38,4,0) ->  | W35: =VLOOKUP(F35,data!$J$2:$M$38,3,0) ->  | X35: =VLOOKUP(F35,data!$J$2:$M$38,2,0) ->  | Y35: 0
B36: . | K36: ='Unused ASC Allowance'!G144 -> 0 | V36: =VLOOKUP(F36,data!$J$2:$M$38,4,0) ->  | W36: =VLOOKUP(F36,data!$J$2:$M$38,3,0) ->  | X36: =VLOOKUP(F36,data!$J$2:$M$38,2,0) ->  | Y36: 0
B37: . | K37: ='Unused ASC Allowance'!G155 -> 0 | V37: =VLOOKUP(F37,data!$J$2:$M$38,4,0) ->  | W37: =VLOOKUP(F37,data!$J$2:$M$38,3,0) ->  | X37: =VLOOKUP(F37,data!$J$2:$M$38,2,0) ->  | Y37: 0
B38: * NOTE: An overhead conductor rating can be entered here if network is overhead.
B43: Outage scenarios | O43: =IF(G1="","",G1) -> 
B47: 1 | C47: Outage on: | D47: Northenden: F4500 Leestone Rd | I47: 2 | J47: Outage on: | K47: Northenden: F1887 Royal Green Rd | T47: =VLOOKUP(D47,$B$24:$N$37,12,0) -> 220.5945545 | U47: =VLOOKUP(K47,$B$24:$N$37,12,0) -> 175
C48: Pick up on: | D48: Northenden: F1887 Royal Green Rd | J48: Pick up on: | K48: Northenden: F4500 Leestone Rd | T48: =VLOOKUP(D48,$B$24:$N$37,12,0) -> 175 | U48: =VLOOKUP(K48,$B$24:$N$37,12,0) -> 220.5945545 | W48: Using Distribution rating | X48: Using Cyclic rating | Y48: Using Continuous Rating
C49: Rating of feeder: | D49: =IF(Z49=0,"",Z49) -> 400 | E49: Amps | F49: Using Distribution rating | J49: Rating of feeder: | K49: =IF(Z50=0,"",Z50) -> 525 | L49: Amps | M49: Using Distribution rating | W49: =IF(($F$49=$W$48),IF(D48="","",VLOOKUP(D48,$B$24:$AB$37,25,0))) -> 400 | X49: =IF(($F$49=$X$48),IF(D48="","",VLOOKUP(D48,$B$24:$AB$37,26,0))) -> FALSE | Y49: =IF(($F$49=$Y$48),IF(D48="","",VLOOKUP(D48,$B$24:$AB$37,27,0))) -> FALSE | Z49: =MAX(W49:Y49) -> 400
C50: Total load on feeder: | D50: =IF(D49="","",SUM(T47:T48)) -> 395.5945545 | E50: Amps | J50: Total load on feeder: | K50: =IF(K49="","",SUM(U47:U48)) -> 395.5945545 | L50: Amps | W50: =IF(($M$49=W48),IF(K48="","",VLOOKUP($K$48,$B$24:AB38,25,0))) -> 525 | X50: =IF(($M$49=X48),IF(K48="","",VLOOKUP($K$48,$B$24:AC38,26,0))) -> FALSE | Y50: =IF(($M$49=Y48),IF(K48="","",VLOOKUP($K$48,$B$24:AD38,27,0))) -> FALSE | Z50: 525
C51: Acceptable: | D51: =IF(AND(D50="",D49=""),"",IF(D50>D49,"NO","YES")) -> YES | F51: Spare amps: | G51: =IF(D49="","",SUM(D49-D50)) -> 4.405445519 | J51: Acceptable: | K51: =IF(AND(K50="",K49=""),"",IF(K50>K49,"NO","YES")) -> YES | M51: Spare amps: | N51: =IF(K49="","",SUM(K49-K50)) -> 129.4054455 | W51: =IF(($F$56=W48),IF(D55="","",VLOOKUP($D$55,$B$24:$AB$37,25,0))) -> 400 | X51: =IF(($F$56=X48),IF(D55="","",VLOOKUP($D$55,$B$24:$AB$37,26,0))) -> FALSE | Y51: =IF(($F$56=Y48),IF(D55="","",VLOOKUP($D$55,$B$24:$AB$37,27,0))) -> FALSE | Z51: 400
C52: Comments: | J52: Comments: | W52: =IF(($M$56=W48),IF(K55="","",VLOOKUP($K$55,$B$24:$AB$37,25,0))) -> 525 | X52: =IF(($M$56=X48),IF(K55="","",VLOOKUP($K$55,$B$24:$AB$37,26,0))) -> FALSE | Y52: =IF(($M$56=Y48),IF(K55="","",VLOOKUP($K$55,$B$24:$AB$37,27,0))) -> FALSE | Z52: 525
T53: =VLOOKUP(D54,$B$24:$N$37,12,0) -> 220.5945545 | U53: =VLOOKUP(K54,$B$24:$N$37,12,0) -> 193 | W53: =IF(($F$63=W48),IF(D62="","",VLOOKUP($D$62,$B$24:$AB$37,25,0))) ->  | X53: =IF(($F$63=X48),IF(D62="","",VLOOKUP($D$62,$B$24:$AB$37,26,0))) -> FALSE | Y53: =IF(($F$63=Y48),IF(D62="","",VLOOKUP($D$62,$B$24:$AB$37,27,0))) -> FALSE | Z53: 0
B54: 3 | C54: Outage on: | D54: Northenden: F4500 Leestone Rd | I54: 4 | J54: Outage on: | K54: Gatley: F2083 Church Rd (Gatley) | T54: =VLOOKUP(D55,$B$24:$N$37,12,0) -> 193 | U54: =VLOOKUP(K55,$B$24:$N$37,12,0) -> 220.5945545 | W54: =IF(($M$63=W48),IF(K62="","",VLOOKUP($K$62,$B$24:$AB$37,25,0))) ->  | X54: =IF(($M$63=X48),IF(K62="","",VLOOKUP($K$62,$B$24:$AB$37,26,0))) -> FALSE | Y54: =IF(($M$63=Y48),IF(K62="","",VLOOKUP($K$62,$B$24:$AB$37,27,0))) -> FALSE | Z54: 0
C55: Pick up on: | D55: Gatley: F2083 Church Rd (Gatley) | J55: Pick up on: | K55: Northenden: F4500 Leestone Rd | W55: =IF(($F$70=W48),IF(D69="","",VLOOKUP($D$69,$B$24:$AB$37,25,0))) ->  | X55: =IF(($F$70=X48),IF(D69="","",VLOOKUP($D$69,$B$24:$AB$37,26,0))) -> FALSE | Y55: =IF(($F$70=Y48),IF(D69="","",VLOOKUP($D$69,$B$24:$AB$37,27,0))) -> FALSE | Z55: 0
C56: Rating of feeder: | D56: =IF(Z51=0,"",Z51) -> 400 | E56: Amps | F56: Using Distribution rating | J56: Rating of feeder: | K56: =IF(Z52=0,"",Z52) -> 525 | L56: Amps | M56: Using Distribution rating | W56: =IF(($M$70=W48),IF(K69="","",VLOOKUP($K$69,$B$24:$AB$37,25,0))) ->  | X56: =IF(($M$70=X48),IF(K69="","",VLOOKUP($K$69,$B$24:$AB$37,26,0))) -> FALSE | Y56: =IF(($M$70=Y48),IF(K69="","",VLOOKUP($K$69,$B$24:$AB$37,27,0))) -> FALSE | Z56: 0
C57: Total load on feeder: | D57: =IF(D56="","",SUM(T53:T54)) -> 413.5945545 | E57: Amps | J57: Total load on feeder: | K57: =IF(K56="","",SUM(U53:U54)) -> 413.5945545 | L57: Amps | W57: =IF(($F$77=W48),IF(D76="","",VLOOKUP($D$76,$B$24:$AB$37,25,0))) ->  | X57: =IF(($F$77=X48),IF(D76="","",VLOOKUP($D$76,$B$24:$AB$37,26,0))) -> FALSE | Y57: =IF(($F$77=Y48),IF(D76="","",VLOOKUP($D$76,$B$24:$AB$37,27,0))) -> FALSE | Z57: 0
C58: Acceptable: | D58: =IF(AND(D57="",D56=""),"",IF(D57>D56,"NO","YES")) -> NO | F58: Spare amps: | G58: =IF(D56="","",SUM(D56-D57)) -> -13.59455448 | J58: Acceptable: | K58: =IF(AND(K57="",K56=""),"",IF(K57>K56,"NO","YES")) -> YES | M58: Spare amps: | N58: =IF(K56="","",SUM(K56-K57)) -> 111.4054455 | W58: =IF(($M$77=W48),IF(K76="","",VLOOKUP($K$76,$B$24:$AB$37,25,0))) ->  | X58: =IF(($M$77=X48),IF(K76="","",VLOOKUP($K$76,$B$24:$AB$37,26,0))) -> FALSE | Y58: =IF(($M$77=Y48),IF(K76="","",VLOOKUP($K$76,$B$24:$AB$37,27,0))) -> FALSE | Z58: 0
C59: Comments: | J59: Comments: | T59: =VLOOKUP(D61,$B$24:$N$37,12,0) ->  | U59: =VLOOKUP(K61,$B$24:$N$37,12,0) ->  | W59: =IF(($F$86=W48),IF(D85="","",VLOOKUP($D$85,$B$24:$AB$37,25,0))) ->  | X59: =IF(($F$86=X48),IF(D85="","",VLOOKUP($D$85,$B$24:$AB$37,26,0))) -> FALSE | Y59: =IF(($F$86=Y48),IF(D85="","",VLOOKUP($D$85,$B$24:$AB$37,27,0))) -> FALSE | Z59: 0
T60: =VLOOKUP(D62,$B$24:$N$37,12,0) ->  | U60: =VLOOKUP(K62,$B$24:$N$37,12,0) ->  | W60: =IF(($M$86=W48),IF(K85="","",VLOOKUP($K$85,$B$24:$AB$37,25,0))) ->  | X60: =IF(($M$86=X48),IF(K85="","",VLOOKUP($K$85,$B$24:$AB$37,26,0))) -> FALSE | Y60: =IF(($M$86=Y48),IF(K85="","",VLOOKUP($K$85,$B$24:$AB$37,27,0))) -> FALSE | Z60: 0
B61: 5 | C61: Outage on: | I61: 6 | J61: Outage on: | W61: =IF(($F$93=W48),IF(D92="","",VLOOKUP($D$92,$B$24:$AB$37,25,0))) ->  | X61: =IF(($F$93=X48),IF(D92="","",VLOOKUP($D$92,$B$24:$AB$37,26,0))) -> FALSE | Y61: =IF(($F$93=Y48),IF(D92="","",VLOOKUP($D$92,$B$24:$AB$37,27,0))) -> FALSE | Z61: 0
C62: Pick up on: | J62: Pick up on: | W62: =IF(($M$93=W48),IF(K92="","",VLOOKUP($K$92,$B$24:$AB$37,25,0))) ->  | X62: =IF(($M$93=X48),IF(K92="","",VLOOKUP($K$92,$B$24:$AB$37,26,0))) -> FALSE | Y62: =IF(($M$93=Y48),IF(K92="","",VLOOKUP($K$92,$B$24:$AB$37,27,0))) -> FALSE | Z62: 0
C63: Rating of feeder: | D63: =IF(Z53=0,"",Z53) ->  | E63: Amps | F63: Using Distribution rating | J63: Rating of feeder: | K63: =IF(Z54=0,"",Z54) ->  | L63: Amps | M63: Using Distribution rating
C64: Total load on feeder: | D64: =IF(D63="","",SUM(T59:T60)) ->  | E64: Amps | J64: Total load on feeder: | K64: =IF(K63="","",SUM(U59:U60)) ->  | L64: Amps
C65: Acceptable: | D65: =IF(AND(D64="",D63=""),"",IF(D64>D63,"NO","YES")) ->  | F65: Spare amps: | G65: =IF(D63="","",SUM(D63-D64)) ->  | J65: Acceptable: | K65: =IF(AND(K64="",K63=""),"",IF(K64>K63,"NO","YES")) ->  | M65: Spare amps: | N65: =IF(K63="","",SUM(K63-K64)) ->  | T65: =VLOOKUP(D68,$B$24:$N$37,12,0) ->  | U65: =VLOOKUP(K68,$B$24:$N$37,12,0) -> 
C66: Comments: | J66: Comments: | T66: =VLOOKUP(D69,$B$24:$N$37,12,0) ->  | U66: =VLOOKUP(K69,$B$24:$N$37,12,0) -> 
B68: 7 | C68: Outage on: | I68: 8 | J68: Outage on:
C69: Pick up on: | J69: Pick up on:
C70: Rating of feeder: | D70: =IF(Z55=0,"",Z55) ->  | E70: Amps | F70: Using Distribution rating | J70: Rating of feeder: | K70: =IF(Z56=0,"",Z56) ->  | L70: Amps | M70: Using Distribution rating
C71: Total load on feeder: | D71: =IF(D70="","",SUM(T65:T66)) ->  | E71: Amps | J71: Total load on feeder: | K71: =IF(K70="","",SUM(U65:U66)) ->  | L71: Amps | T71: =VLOOKUP(D75,$B$24:$N$37,12,0) ->  | U71: =VLOOKUP(K75,$B$24:$N$37,12,0) -> 
C72: Acceptable: | D72: =IF(AND(D71="",D70=""),"",IF(D71>D70,"NO","YES")) ->  | F72: Spare amps: | G72: =IF(D70="","",SUM(D70-D71)) ->  | J72: Acceptable: | K72: =IF(AND(K71="",K70=""),"",IF(K71>K70,"NO","YES")) ->  | M72: Spare amps: | N72: =IF(K70="","",SUM(K70-K71)) ->  | T72: =VLOOKUP(D76,$B$24:$N$37,12,0) ->  | U72: =VLOOKUP(K76,$B$24:$N$37,12,0) -> 
C73: omments: | J73: Comments:
B75: 9 | C75: Outage on: | I75: 10 | J75: Outage on:
C76: Pick up on: | J76: Pick up on:
C77: Rating of feeder: | D77: =IF(Z57=0,"",Z57) ->  | E77: Amps | F77: Using Distribution rating | J77: Rating of feeder: | K77: =IF(Z58=0,"",Z58) ->  | L77: Amps | M77: Using Distribution rating | T77: =VLOOKUP(D84,$B$24:$N$37,12,0) ->  | U77: =VLOOKUP(K84,$B$24:$N$37,12,0) -> 
C78: Total load on feeder: | D78: =IF(D77="","",SUM(T71:T72)) ->  | E78: Amps | J78: Total load on feeder: | K78: =IF(K77="","",SUM(U71:U72)) ->  | L78: Amps | T78: =VLOOKUP(D85,$B$24:$N$37,12,0) ->  | U78: =VLOOKUP(K85,$B$24:$N$37,12,0) -> 
C79: Acceptable: | D79: =IF(AND(D78="",D77=""),"",IF(D78>D77,"NO","YES")) ->  | F79: Spare amps: | G79: =IF(D77="","",SUM(D77-D78)) ->  | J79: Acceptable: | K79: =IF(AND(K78="",K77=""),"",IF(K78>K77,"NO","YES")) ->  | M79: Spare amps: | N79: =IF(K77="","",SUM(K77-K78)) -> 
C80: Comments: | J80: Comments:
B84: 11 | C84: Outage on: | I84: 12 | J84: Outage on: | T84: =VLOOKUP(D91,$B$24:$N$37,12,0) ->  | U84: =VLOOKUP(K91,$B$24:$N$37,12,0) -> 
C85: Pick up on: | J85: Pick up on: | T85: =VLOOKUP(D92,$B$24:$N$37,12,0) ->  | U85: =VLOOKUP(K92,$B$24:$N$37,12,0) -> 
C86: Rating of feeder: | D86: =IF(Z59=0,"",Z59) ->  | E86: Amps | F86: Using Distribution rating | J86: Rating of feeder: | K86: =IF(Z60=0,"",Z60) ->  | L86: Amps | M86: Using Distribution rating
C87: Total load on feeder: | D87: =IF(D86="","",SUM(T77:T78)) ->  | E87: Amps | J87: Total load on feeder: | K87: =IF(K86="","",SUM(U77:U78)) ->  | L87: Amps
C88: Acceptable: | D88: =IF(AND(D87="",D86=""),"",IF(D87>D86,"NO","YES")) ->  | F88: Spare amps: | G88: =IF(D86="","",SUM(D86-D87)) ->  | J88: Acceptable: | K88: =IF(AND(K87="",K86=""),"",IF(K87>K86,"NO","YES")) ->  | M88: Spare amps: | N88: =IF(K86="","",SUM(K86-K87)) -> 
C89: Comments: | J89: Comments:
B91: 13 | C91: Outage on: | I91: 14 | J91: Outage on:
C92: Pick up on: | J92: Pick up on:
C93: Rating of feeder: | D93: =IF(Z61=0,"",Z61) ->  | E93: Amps | F93: Using Distribution rating | J93: Rating of feeder: | K93: =IF(Z62=0,"",Z62) ->  | L93: Amps | M93: Using Distribution rating
C94: Total load on feeder: | D94: =IF(D93="","",SUM(T84:T85)) ->  | E94: Amps | J94: Total load on feeder: | K94: =IF(K93="","",SUM(U84:U85)) ->  | L94: Amps
C95: Acceptable: | D95: =IF(AND(D94="",D93=""),"",IF(D94>D93,"NO","YES")) ->  | F95: Spare amps: | G95: =IF(D93="","",SUM(D93-D94)) ->  | J95: Acceptable: | K95: =IF(AND(K94="",K93=""),"",IF(K94>K93,"NO","YES")) ->  | M95: Spare amps: | N95: =IF(K93="","",SUM(K93-K94)) -> 
C96: Comments: | J96: Comments:
B98: =IF(G1="","",G1) -> 
B99: Free format notes:

Sheet For approval only (hidden)
A1: NC
A2: =Input!L9 -> 1393 | B2: kVA
A4: R11/11/11
A6: =Input!L4 -> 5500153017A
A7: =Input!G1 -> 
A8: =Input!E6 -> Peter Range
A9: ='R Form'!E57 -> Manchester
A10: =Input!E3 -> Stagecoach Sharston Depot, Leestone Road, Wythenshawe, Manchester
A18: HV DIAG. | B18: =Input!E16 -> MANCHESTER SOUTH
A19: PROJ. NO. | B19: =A6 -> 5500153017A
A20: PRIMARY | B20: =Input!E14 -> NORTHENDEN
A21: FEEDER | B21: ='R Form'!F11 -> F4500 LEESTONE RD
A22: G.REF. | B22: ='R Form'!#REF!&+'R Form'!#REF!&"."&+'R Form'!#REF! -> 
A23: REQ. REASON | B23: =A1 -> NC
A24: REQ. DESC. | B24: =Input!E3 -> Stagecoach Sharston Depot, Leestone Road, Wythenshawe, Manchester
A25: ADD LOAD | B25: =A2 -> 1393
A26: REQUESTED BY | B26: =A8 -> Peter Range

Sheet Splitting feeder calculation (hidden)
A1: Feeder Name: | N1: =Input!U9 -> 6600
N2: Diversity
A3: Substation name | B3: Substation number | C3: MD of Tx | F3: Diversified load (Amps) | N3: =C28/C27 -> 0.5132002393
A4: Duddon Road | B4: 616064 | C4: 500 | D4: kVA | E4: =SUM(C4*1000)/($N$1*SQRT(3)) -> 43.73865676 | F4: =SUM((C4*1000)/($N$1*SQRT(3)))*$C$30 -> 22.44668911 | N4: FALSE | O4: =IF(N4=TRUE,F4,0) -> 0 | P4: =IF(N4=FALSE,F4,0) -> 22.44668911
A5: St Georges Square | B5: 618006 | C5: 400 | D5: kVA | E5: =SUM(C5*1000)/($N$1*SQRT(3)) -> 34.99092541 | F5: 17.95735129 | N5: FALSE | O5: =IF(N5=TRUE,F5,0) -> 0 | P5: =IF(N5=FALSE,F5,0) -> 17.95735129
A6: Haverigg Windfarm 'D' | B6: 619460 | C6: 40 | D6: kVA | E6: =SUM(C6*1000)/($N$1*SQRT(3)) -> 3.499092541 | F6: 1.795735129 | N6: FALSE | O6: 0 | P6: 1.795735129
A7: Back Duke St. | B7: 616006 | C7: 360 | D7: kVA | E7: 31.49183286 | F7: 16.16161616 | N7: FALSE | O7: 0 | P7: 16.16161616
A8: Kings Quarry | B8: 616009 | C8: 415 | D8: kVA | E8: 36.30308511 | F8: 18.63075196 | N8: FALSE | O8: 0 | P8: 18.63075196
A9: Lowther Rd | B9: 616007 | C9: 325 | D9: kVA | E9: 28.43012689 | F9: 14.59034792 | N9: FALSE | O9: 0 | P9: 14.59034792
A10: Moor End | B10: 610087 | C10: 15 | D10: kVA | E10: 1.312159703 | F10: 0.6734006734 | N10: FALSE | O10: 0 | P10: 0.6734006734
A11: Oxenbows | B11: 610078 | C11: 200 | D11: kVA | E11: 17.4954627 | F11: 8.978675645 | N11: FALSE | O11: 0 | P11: 8.978675645
A12: Moor Cotts | B12: 610087 | C12: 500 | D12: kVA | E12: 43.73865676 | F12: 22.44668911 | N12: FALSE | O12: 0 | P12: 22.44668911
A13: Back Albert St. | B13: 616012 | C13: 800 | D13: kVA | E13: 69.98185081 | F13: 35.91470258 | N13: FALSE | O13: 0 | P13: 35.91470258
A14: Queens Street | B14: 616015 | C14: 600 | D14: kVA | E14: 52.48638811 | F14: 26.93602694 | N14: FALSE | O14: 0 | P14: 26.93602694
A15: Effluent Pump | B15: 616222 | C15: 200 | D15: kVA | E15: 17.4954627 | F15: 8.978675645 | N15: FALSE | O15: 0 | P15: 8.978675645
A16: Wellington Street | B16: 616016 | C16: 100 | D16: kVA | E16: 8.747731351 | F16: 4.489337823 | N16: FALSE | O16: 0 | P16: 4.489337823
A17: Furness Street | B17: 616019 | D17: kVA | E17: 0 | F17: 0 | N17: FALSE | O17: 0 | P17: 0
A18: Argyle Street | B18: 616014 | D18: kVA | E18: 0 | F18: 0 | N18: FALSE | O18: 0 | P18: 0
A19: Hearfields | B19: 616232 | D19: kVA | E19: 0 | F19: 0 | N19: FALSE | O19: 0 | P19: 0
D20: kVA | E20: 0 | F20: 0 | N20: FALSE | O20: 0 | P20: 0
D21: kVA | E21: 0 | F21: 0 | N21: FALSE | O21: 0 | P21: 0
D22: kVA | E22: 0 | F22: 0 | N22: FALSE | O22: 0 | P22: 0
D23: kVA | E23: 0 | F23: 0 | N23: FALSE | O23: 0 | P23: 0
D24: kVA | E24: 0 | F24: 0 | N24: FALSE | O24: 0 | P24: 0
D25: kVA | E25: =SUM(C25*1000)/($N$1*SQRT(3)) -> 0 | F25: 0 | N25: FALSE | O25: 0 | P25: 0
B26: Total load (MD): | C26: =SUM(C4:C25) -> 4455 | D26: kVA | O26: =SUM(O4:O25) -> 0 | P26: =SUM(P4:P25) -> 200
B27: Total load (MD): | C27: =SUM(C26*1000)/($N$1*SQRT(3)) -> 389.7114317 | D27: Amps
B28: FLA load on feeder: | C28: 200 | D28: Amps
B29: Calculated Diversity: | C29: =N3 -> 0.5132002393 | F29: =IF(C29<0.5,"VERY LOW DIVERSITY",IF(C29>0.71,"","LOW DIVERSITY")) -> LOW DIVERSITY
B30: User Input Diversity: | C30: =C29 -> 0.5132002393
B31: Checked boxes: | C31: =O26 -> 0 | D31: Amps
B32: Un checked boxes: | C32: =P26 -> 200 | D32: Amps

Sheet Unused ASC Allowance
A1: Unused ASC (existing and future customers)
A4: =Input!B24 -> Northenden: F4500 Leestone Rd
A5: Customer | B5: MPAN | C5: ASC | D5: MD | E5: Unused | F5: Factor | G5: Results
A6: Stagecoach Bus Depot (quoted) | B6: 55-147350 | C6: 415 | E6: =IF(C6="","",SUM(C6-D6)) -> 415 | F6: 0 | G6: =IF(F6=0,"",SUM(F6*E6)) ->  | J6: =Input!U9 -> 6600
A7: Development, Altrincham Road (accepted) | B7: 55-64200 | C7: 500 | E7: 500 | F7: 1 | G7: 500 | J7: =SUM(G6:G11) -> 500
A8: Petrocarbon house (171975) | F8: 0
F9: 0
A10: Insuloid (171442) (HV) | B10: 1620000306779 | F10: 0
F11: 0
A12: Total | G12: =SUM(((J7)*1000)/(J6*SQRT(3))) -> 43.73865676 | H12: Amps
A15: =Input!B25 -> Northenden: F1887 Royal Green Rd
A16: Customer | B16: MPAN | C16: ASC | D16: MD | E16: Unused | F16: Factor | G16: Results
A17: Wylex Intake (172528) | B17: 1620000001683 | C17: 450 | D17: 450 | E17: =IF(C17="","",SUM(C17-D17)) -> 0 | F17: 0 | G17: =IF(F17=0,"",SUM(F17*E17)) ->  | J17: =Input!U9 -> 6600
F18: 0 | G18: =IF(F18=0,"",SUM(F18*E28)) ->  | J18: =SUM(G17:G22) -> 0
F19: 0
F20: 0
F21: 0
F22: 0
A23: Total | G23: =SUM(((J18)*1000)/(J17*SQRT(3))) -> 0 | H23: Amps
A26: =Input!B26 -> Gatley: F2083 Church Rd (Gatley)
A27: Customer | B27: MPAN | C27: ASC | D27: MD | E27: Unused | F27: Factor | G27: Results
E28: =IF(C28="","",SUM(C28-D28)) ->  | F28: 0 | G28: =IF(F28=0,"",SUM(F28*#REF!)) ->  | J28: =Input!U9 -> 6600
E29: =IF(C29="","",SUM(C29-D29)) ->  | F29: 0 | G29: =IF(F29=0,"",SUM(F29*E29)) ->  | J29: =SUM(G28:G33) -> 0
F30: 0
F31: 0
F32: 0
F33: 0
A34: Total | G34: =SUM(((J29)*1000)/(J28*SQRT(3))) -> 0 | H34: Amps
A37: =Input!B27 -> 0
A38: Customer | B38: MPAN | C38: ASC | D38: MD | E38: Unused | F38: Factor | G38: Results
E39: =IF(C39="","",SUM(C39-D39)) ->  | F39: 0 | G39: =IF(F39=0,"",SUM(F39*E39)) ->  | J39: =Input!U9 -> 6600
F40: 0 | J40: =SUM(G39:G44) -> 0
F41: 0
F42: 0
F43: 0
F44: 0
A45: Total | G45: =SUM(((J40)*1000)/(J39*SQRT(3))) -> 0 | H45: Amps
A48: =Input!B28 -> .
A49: Customer | B49: MPAN | C49: ASC | D49: MD | E49: Unused | F49: Factor | G49: Results
E50: =IF(C50="","",SUM(C50-D50)) ->  | F50: 0 | G50: =IF(F50=0,"",SUM(F50*E50)) ->  | J50: =Input!U9 -> 6600
F51: 0 | J51: =SUM(G50:G55) -> 0
F52: 0
F53: 0
F54: 0
F55: 0
A56: Total | G56: =SUM(((J51)*1000)/(J50*SQRT(3))) -> 0 | H56: Amps
A59: =Input!B29 -> .
A60: Customer | B60: MPAN | C60: ASC | D60: MD | E60: Unused | F60: Factor | G60: Results
E61: =IF(C61="","",SUM(C61-D61)) ->  | F61: 0 | G61: =IF(F61=0,"",SUM(F61*E61)) ->  | J61: =Input!U9 -> 6600
F62: 0 | J62: =SUM(G61:G66) -> 0
F63: 0
F64: 0
F65: 0
F66: 0
A67: Total | G67: =SUM(((J62)*1000)/(J61*SQRT(3))) -> 0 | H67: Amps
A70: =Input!B30 -> .
A71: Customer | B71: MPAN | C71: ASC | D71: MD | E71: Unused | F71: Factor | G71: Results
E72: =IF(C72="","",SUM(C72-D72)) ->  | F72: 0 | G72: =IF(F72=0,"",SUM(F72*E72)) ->  | J72: =Input!U9 -> 6600
F73: 0 | J73: =SUM(G72:G77) -> 0
F74: 0
F75: 0
F76: 0
F77: 0
A78: Total | G78: =SUM(((J73)*1000)/(J72*SQRT(3))) -> 0 | H78: Amps
A81: =Input!B31 -> .
A82: Customer | B82: MPAN | C82: ASC | D82: MD | E82: Unused | F82: Factor | G82: Results
E83: =IF(C83="","",SUM(C83-D83)) ->  | F83: 0 | G83: =IF(F83=0,"",SUM(F83*E83)) ->  | J83: =Input!U9 -> 6600
F84: 0 | J84: =SUM(G83:G88) -> 0
F85: 0
F86: 0
F87: 0
F88: 0
A89: Total | G89: =SUM(((J84)*1000)/(J83*SQRT(3))) -> 0 | H89: Amps
A92: =Input!B32 -> .
A93: Customer | B93: MPAN | C93: ASC | D93: MD | E93: Unused | F93: Factor | G93: Results
E94: =IF(C94="","",SUM(C94-D94)) ->  | F94: 0 | G94: =IF(F94=0,"",SUM(F94*E94)) ->  | J94: =Input!U9 -> 6600
F95: 0 | J95: =SUM(G94:G99) -> 0
F96: 0
F97: 0
F98: 0
F99: 0
A100: Total | G100: =SUM(((J95)*1000)/(J94*SQRT(3))) -> 0 | H100: Amps
A103: =Input!B33 -> .
A104: Customer | B104: MPAN | C104: ASC | D104: MD | E104: Unused | F104: Factor | G104: Results
E105: =IF(C105="","",SUM(C105-D105)) ->  | F105: 0 | G105: =IF(F105=0,"",SUM(F105*E105)) ->  | J105: =Input!U9 -> 6600
F106: 0 | J106: =SUM(G105:G110) -> 0
F107: 0
F108: 0
F109: 0
F110: 0
A111: Total | G111: =SUM(((J106)*1000)/(J105*SQRT(3))) -> 0 | H111: Amps
A114: =Input!B34 -> .
A115: Customer | B115: MPAN | C115: ASC | D115: MD | E115: Unused | F115: Factor | G115: Results
E116: =IF(C116="","",SUM(C116-D116)) ->  | F116: 0 | G116: =IF(F116=0,"",SUM(F116*E116)) ->  | J116: =Input!U9 -> 6600
F117: 0 | J117: =SUM(G116:G121) -> 0
F118: 0
F119: 0
F120: 0
F121: 0
A122: Total | G122: =SUM(((J117)*1000)/(J116*SQRT(3))) -> 0 | H122: Amps
A125: =Input!B35 -> .
A126: Customer | B126: MPAN | C126: ASC | D126: MD | E126: Unused | F126: Factor | G126: Results
E127: =IF(C127="","",SUM(C127-D127)) ->  | F127: 0 | G127: =IF(F127=0,"",SUM(F127*E127)) ->  | J127: =Input!U9 -> 6600
F128: 0 | J128: =SUM(G127:G132) -> 0
F129: 0
F130: 0
F131: 0
F132: 0
A133: Total | G133: =SUM(((J128)*1000)/(J127*SQRT(3))) -> 0 | H133: Amps
A136: =Input!B36 -> .
A137: Customer | B137: MPAN | C137: ASC | D137: MD | E137: Unused | F137: Factor | G137: Results
E138: =IF(C138="","",SUM(C138-D138)) ->  | F138: 0 | G138: =IF(F138=0,"",SUM(F138*E138)) ->  | J138: =Input!U9 -> 6600
F139: 0 | J139: =SUM(G138:G143) -> 0
F140: 0
F141: 0
F142: 0
F143: 0
A144: Total | G144: =SUM(((J139)*1000)/(J138*SQRT(3))) -> 0 | H144: Amps
A147: =Input!B37 -> .
A148: Customer | B148: MPAN | C148: ASC | D148: MD | E148: Unused | F148: Factor | G148: Results
E149: =IF(C149="","",SUM(C149-D149)) ->  | F149: 0 | G149: =IF(F149=0,"",SUM(F149*E149)) ->  | J149: =Input!U9 -> 6600
F150: 0 | J150: =SUM(G149:G154) -> 0
F151: 0
F152: 0
F153: 0
F154: 0
A155: Total | G155: =SUM(((J150)*1000)/(J149*SQRT(3))) -> 0 | H155: Amps

Sheet R Form
B1: REQUEST FOR ALTERATION TO HV SYSTEM 'R' FORM
B2: Approval of this form must not be taken as an endorsement of the Health & Safety, technical or economic merits of the proposed alteration (see EDP 282, 4.1).
B4: =Input!D3 -> Scheme Name and address: | E4: =Input!E3 -> Stagecoach Sharston Depot, Leestone Road, Wythenshawe, Manchester | L4: Existing MIC: | O4: =Input!L7 -> 120 | P4: kVA | Q4: Proposed MIC: | T4: =Input!L6 -> 1500 | U4: kVA
L5: Existing MEC: | O5: =Input!O7 -> 0 | P5: kVA | Q5: Proposed MEC: | T5: =Input!O6 -> 0 | U5: kVA
B6: Application Start Date | E6: =Input!L12 -> 2019-06-22 | L6: Estimated increase in demand on the network to be seen above the existing levels: | S6: =Input!L9 -> 1393 | U6: kVA
B7: Post code: | E7: =Input!E4 -> M22 4RB | G7: Project No. | I7: =Input!L4 -> 5500153017A | L7: Interactive: | Q7: No
B8: Status: | F8: =Input!E9 -> Proposed | L8: Type: | Q8: =Input!E10 -> Add Load
B9: Distribution Sub: | F9: =Input!E12 -> 178413 | L9: Connection Type: | P9: Demand | R9: =IF(Input!L19=0,"",Input!L19) -> N-1 | S9: Generation | U9: =IF(Input!L20=0,"",Input!L20) -> 
B10: Primary Substation: | F10: =Input!E14 -> NORTHENDEN | L10: For approval use only
B11: Primary feeder name: | F11: =Input!E13 -> F4500 LEESTONE RD | L11: RELEASED:
Y12: YES | Z12: =VLOOKUP(Y12,AA12:AB24,2,1) -> Northenden: F4500 Leestone Rd | AA12: =Input!J24 -> YES | AB12: =Input!B24 -> Northenden: F4500 Leestone Rd
B13: HV diagram reference: | F13: =Input!E16 -> MANCHESTER SOUTH | L13: Release Expiry Date | AA13: =Input!J25 -> NO | AB13: =Input!B25 -> Northenden: F1887 Royal Green Rd
B14: Grid Ref: | D14: X: | E14: =IF(Input!BA21="","Please enter X",Input!BA21) -> 383472 | H14: Y: | I14: =IF(Input!BB21="","Please enter Y",Input!BB21) -> 388998 | L14: (Expiry date of approval to undertake work) | AA14: =Input!J27 -> 0 | AB14: =Input!B27 -> 0
B15: Are there legal consents required with parties other than the applicant? | L15: WORK CANNOT PROCEED WITHOUT A RELEASE SIGNATURE | AA15: =Input!J28 -> 0 | AB15: =Input!B28 -> .
L16: Registration No: | AA16: =Input!J29 -> 0 | AB16: =Input!B29 -> .
B17: Design includes network performance optimisation as per EPD 282, 4.2? | AA17: =Input!J30 -> 0 | AB17: =Input!B30 -> .
AA18: =Input!J31 -> 0 | AB18: =Input!B31 -> .
B19: System before | L19: System after | AA19: =Input!J32 -> 0 | AB19: =Input!B32 -> .
AA20: =Input!J33 -> 0 | AB20: =Input!B33 -> .
AA21: =Input!J34 -> 0 | AB21: =Input!B34 -> .
AA22: =Input!J35 -> 0 | AB22: =Input!B35 -> .
AA23: =Input!J36 -> 0 | AB23: =Input!B36 -> .
AA24: =Input!J37 -> 0 | AB24: =Input!B37 -> .
B45: Are there any reinforcement costs associated with this project? | L45: Yes | S45: No
B47: Are there any abnormal loads, eg large motors, welders, thyristor control, arc furnace etc? If yes, provide brief summary and attach details.
B49: Other notes: | D49: S.K
B53: Requested by: | E53: =Input!E6 -> Peter Range | L53: Strategic Planning Engineer | O53: Name: | Q53: =Input!E7 -> Ian Walker
B55: Date: | E55: =IF(Input!L3="","",Input!L3) -> 2019-07-31 | O55: Tel: | Q55: =Input!H7 -> 22931
B57: Office & Dept: | E57: =VLOOKUP(Input!E6,data!O2:R150,4,0) -> Manchester | L57: Alteration registered by: | O57: Signed:
B59: Tel: | E59: =Input!H6 -> 22018 | O59: Print:
O61: Date:
B63: PROPOSAL EXPIRY DATE:
B65: An approved copy of this form, with RELEASE VALIDATION, must accompany the associated HV switching programme:
B67: Document No | E67: Loadcheck Version | I67: R form Version | L67: Issue date | O67: Template Prepared by | S67: Approved by
B68: GB 01 | E68: Version3 (11/02/2014) | I68: Version 8.0 (March19 v1.3) | L68: 2019-03-28 | O68: Gillian Williamson | S68: Victoria Turnham

Sheet POC Report
B1: HV Point of Connection Report
A2: HV POC Assessment
A3: Strategic Planning Planning Engineer | B3: =Input!E7 -> Ian Walker
A4: HV POC Completion Date | B4: =Input!L3 -> 2019-07-31
A5: Scheme Application Information
A6: Reference Number 55 No. | B6: =Input!L4 -> 5500153017A
A7: 58 No. | B7: =Input!AO21 -> 580000084470
A8: Scheme Name & Address | B8: =Input!E3 -> Stagecoach Sharston Depot, Leestone Road, Wythenshawe, Manchester
A9: Scheme Postcode | B9: =Input!E4 -> M22 4RB
A10: Grid Reference X | B10: =IF(Input!BA21="","Please enter X",Input!BA21) -> 383472
A11: Y | B11: =IF(Input!BB21="","Please enter Y",Input!BB21) -> 388998 | N11: =IF(OR(N12=1,N13=1),0,1) -> 1 | O11: Demand
A12: Connection Type | B12: =VLOOKUP(1,N11:O13,2,0) -> Demand | N12: =IF([2]Input!E14="Generation (No Storage)",1,"") ->  | O12: Generator
A13: Demand/Generator/Storage | N13: =IF([2]Input!E14="Generation (Storage)",1,"") ->  | O13: Storage
A14: Generator Classification (G99 Type) | B14: =IF(B12<>"Demand","Please enter G99 Type classification","Not required for Demand") -> Not required for Demand
A15: Import (MIC - kW) | B15: =Input!L6&"kVA" -> 1500kVA
A16: Export (MEC - kW) | B16: =IF(Input!O10="","",Input!O6&" Kw") -> 
A17: Applicant | B17: UK Power Networks
A18: Overview | B18: Add load 1500kVA to existing network
A19: Point of Connection
A20: Primary Substation | B20: =Input!E14 -> NORTHENDEN
A21: Circuit (if applicable) | B21: =Input!E13 -> F4500 LEESTONE RD
A22: Point of Connection | B22: Add load 1500kVA to existing network
A23: Connection Details
A24: Any capital work involved – if so, describe:
A25: Rating for Apportionment -CAF factors (if applicable)
A26: Interactive | B26: Yes | K26: Yes | L26: No
A27: Baisis on Interactivity (circuit or Primary name) | B27: F1887 Royal Green Rd
A28: Second Comer Applicable?
A29: HV circuit/asset affected by second comer
A30: Power Supply Interruptions (PSI's)
A31: Circuit Main Earth's required (CME's)
A32: Statement of Works
A33: Other Comments
A34: Other Comments | B34: The proposed scheme shall be made interactive with 55-147350 (Stagecoach Bus Depot)

Sheet Drawing (hidden)
BE2: =IF($AY$2=BF2,1,"") ->  | BF2: No | BX2: Looped
BE3: =IF($AY$2=BF3,1,"") ->  | BF3: 1 | BX3: Teed | CB3: 230
BE4: =IF($AY$2=BF4,1,"") ->  | BF4: 2 | BZ4: 15 | CB4: 230/400
BE5: =IF($AY$2=BF5,1,"") ->  | BF5: 3 | BZ5: 25 | CB5: 230/460
BZ6: 100 | CB6: 6600
BZ7: 200 | CB7: 11000
BZ8: 300 | CB8: 33000
AC9: PROJECT DETAIL | BZ9: 315
BZ10: 500
AC11: Name & Address: | AD11: =Input!E3 -> Stagecoach Sharston Depot, Leestone Road, Wythenshawe, Manchester | BZ11: 750
BZ12: 800
BZ13: 1000
AC17: Scheme Ref Number: | AE17: =Input!L4 -> 5500153017A
AC19: Drawn By: | AE19: =Input!E6 -> Peter Range
AC21: Date: | AE21: ='POC Report'!B4:J4 -> 
AC23: Grid Reference: | AE23: (X) | AF23: ='R Form'!E14:G14 -> 
AE24: (Y) | AF24: ='R Form'!I14:K14 -> 
AC25: Scale: | AF25: N.T.S
AB33: POINT OF CONNECTION
AB34: TECHNICAL DETAIL
AC36: Cable Size @ P.O.C :
AC38: Voltage : | AF38: =Input!E19 -> 6.6kV
AC40: Minimum Cable Size :
AC42: Loop or Teed (HV only)
AC44: Feeder Name / No : | AF44: ='R Form'!F11:K12 -> 
AC46: Transformer Size : | AG46: kVA
AC48: Fuse Size : | AG48: Amps
AC50: Earth Loop Impedance : | AG50: ohms
AC52: % Voltage Drop
AC53: 1) Including site load | AG53: %
AC55: 2) excluding site Load | AG55: %
AC57: Generation:
AC59: Voltage Rise relative to primary BB : | AG59: %
AC62: Positive sequence R+JX (% on 100MVA base)
AC65: Notes :
AC68: For reference only
F70: This plan is issued by Electricity North West Limited. Unless otherwise indicated Electricity North West Limited cables are laid at depths in accordance with NJUG 2 (typically 450mm for Low Voltage & 600mm for 11KV cables in footpath). 33KV/132KV cables are laid at depths as marked. The depths and positions of Electricity North West Limited equipment was accurate as shown when the equipment was installed. However, third parties may have altered the surface level & other reference data. Therefore Electricity North West Limited accept no responsibility for the position of Electricity North West Limited equipment being different from that shown. No person, body or company, shall be relieved from liability for damage caused to Electricity North West Limited equipment by reason of being located differently to the indications on this drawing. Service cables are not necessarily shown but must be assumed to exist to all premises, streetlights and signs. There may be other Electricity North West Limited apparatus in the vicinity which is not indicated in the cable records.
F73: Other apparatus may also be present which is owned by a third party other than Electricity North West Limited. Reproduced from or based upon Ordnance Survey's map with permission of the controller of Her Majesty's Stationery Office. Crown Copyright Reserved. LICENCE No 100017892. Unauthorised reproduction infringes Crown Copyright and may lead to prosecution or civil proceedings. Reference should be made to HSE guidance HS(G)47 "Avoiding Danger from Underground Services" and GS6 "Avoidance of Danger from Overhead Power Lines". Electricity North West Limited, registered number 2366949, registered in England and Wales, registered office: 304 Bridgewater Place, Birchwood Park, Warrington, WA3 6XG

Sheet Before Drwg
Y10: YES | Z10: =VLOOKUP(Y10,AA10:AB22,2,0) -> Northenden: F4500 Leestone Rd | AA10: =Input!J24 -> YES | AB10: =Input!B24 -> Northenden: F4500 Leestone Rd
AA11: =Input!J25 -> NO | AB11: =Input!B25 -> Northenden: F1887 Royal Green Rd
AA12: =Input!J27 -> 0 | AB12: =Input!B27 -> 0
AA13: =Input!J28 -> 0 | AB13: =Input!B28 -> .
AA14: =Input!J29 -> 0 | AB14: =Input!B29 -> .
AA15: =Input!J30 -> 0 | AB15: =Input!B30 -> .
AA16: =Input!J31 -> 0 | AB16: =Input!B31 -> .
AA17: =Input!J32 -> 0 | AB17: =Input!B32 -> .
AA18: =Input!J33 -> 0 | AB18: =Input!B33 -> .
AA19: =Input!J34 -> 0 | AB19: =Input!B34 -> .
AA20: =Input!J35 -> 0 | AB20: =Input!B35 -> .
AA21: =Input!J36 -> 0 | AB21: =Input!B36 -> .
AA22: =Input!J37 -> 0 | AB22: =Input!B37 -> .

Sheet After Drwg
Y10: YES | Z10: =VLOOKUP(Y10,AA10:AB22,2,0) -> Northenden: F4500 Leestone Rd | AA10: =Input!J24 -> YES | AB10: =Input!B24 -> Northenden: F4500 Leestone Rd
AA11: =Input!J25 -> NO | AB11: =Input!B25 -> Northenden: F1887 Royal Green Rd
AA12: =Input!J27 -> 0 | AB12: =Input!B27 -> 0
AA13: =Input!J28 -> 0 | AB13: =Input!B28 -> .
AA14: =Input!J29 -> 0 | AB14: =Input!B29 -> .
AA15: =Input!J30 -> 0 | AB15: =Input!B30 -> .
AA16: =Input!J31 -> 0 | AB16: =Input!B31 -> .
AA17: =Input!J32 -> 0 | AB17: =Input!B32 -> .
AA18: =Input!J33 -> 0 | AB18: =Input!B33 -> .
AA19: =Input!J34 -> 0 | AB19: =Input!B34 -> .
AA20: =Input!J35 -> 0 | AB20: =Input!B35 -> .
AA21: =Input!J36 -> 0 | AB21: =Input!B36 -> .
AA22: =Input!J37 -> 0 | AB22: =Input!B37 -> .

Sheet data
A1: Primary s/s | B1: £ per kVA | C1: G&P STUDY REQUIRED | D1: HV diagram area | E1: VOLTAGE | G1: 11kV | H1: 11000 | J1: Size | K1: Continuous | L1: Cyclic | M1: Distribution | O1: Planner | P1: Tel (Internal) | Q1: Fax | R1: Area | V1: Selector
A2: Air Products | D2: MANCHESTER SOUTH | G2: 6.6kV | H2: 6600 | J2: 95 XXX | K2: 245 | L2: 284 | M2: 316 | O2: PLEASE FILL IN NAME | V2: Yes
A3: Albion St | B3: 0 | C3: 0 | D3: BLACKBURN | E3: 6.6kV | J3: 95 PICAS | K3: 185 | L3: 210 | M3: 245 | O3: Alan Bradley | P3: 81868 | Q3: 81732 | R3: Planning Preston | V3: No
A4: Alderley & Chelford | B4: 0 | C4: 0 | D4: PEAK SOUTH | E4: 11kV | J4: 95 Cu PILC | K4: 245 | L4: 275 | M4: 330 | O4: Alan Kemp | P4: 81834 | Q4: 81841 | R4: Statutory Preston | T4: OK WITH DIVERSITY
A5: Alderley Park | D5: PEAK SOUTH | J5: 95 Al PILC | K5: 190 | L5: 215 | M5: 260 | O5: Alek Hyzniak | P5: 22961 | Q5: 22314 | R5: Manchester | T5: ALTERNTIVE AVAILABLE
A6: Alston | B6: 0 | C6: 0 | D6: PENRITH | E6: 11kV | J6: 400 XXX | K6: 552 | L6: 646 | M6: 713 | O6: Allen Rawcliffe | P6: 81468 | Q6: 81503 | R6: Statutory Preston | T6: NOT DUE TO NEW LOAD
A7: AM Paper | D7: SOUTH LANCS | J7: 300 XXX | K7: 461 | L7: 542 | M7: 610 | O7: Andrew Harper | P7: 24344 | R7: Manchester | T7: RESTORE SUPPLIES BY SPLITTING
A8: Ambleside | B8: 0 | C8: 0 | D8: KENDAL | E8: 11kV | J8: 300 PICAS | K8: 355 | L8: 400 | M8: 490 | O8: Andrew Twyford | P8: 01524 701423 | R8: Planning Kendal | T8: FEEDER SPLIT TO RESTORE SUPPLIES
A9: Ancoats North T11 & T12 | B9: 0 | C9: 0 | D9: MANCHESTER NORTH | E9: 6.6kV | J9: 300 Cu PILC | K9: 460 | L9: 520 | M9: 665 | O9: Andy Lees | P9: 22930 | Q9: 22314 | R9: Manchester | T9: SEE BELOW FOR REDUCED SECTION
A10: Ancoats North T13 | D10: MANCHESTER NORTH | E10: 6.6kV | J10: 300 Al PILC | K10: 365 | L10: 410 | M10: 525 | O10: Anne Thomson | P10: 22139 | Q10: 22314 | R10: Manchester | T10: TO CHECK REDUCED SECTION IN FEEDER
A11: Annie Pit | B11: 0 | C11: 0 | D11: WORKINGTON | E11: 11kV | J11: 240 Cu PILC | K11: 410 | L11: 460 | M11: 460 | O11: Bill Halliwell | P11: 81610 | Q11: 81503 | R11: Statutory Preston | T11: EXISTING ARRANGEMENT
A12: Ansdell | B12: 0 | C12: 0 | D12: BLACKPOOL | E12: 6.6kV | J12: 240 Al PILC | K12: 325 | L12: 365 | M12: 460 | O12: Bryan Jenkinson | P12: 86128 | Q12: 86009 | R12: Planning Kendal | T12: PROPOSED ARRANGEMENT
A13: Ardwick | B13: 0 | C13: LV charges are £153.31. All charges apply until 29/6/2014. Proj ref d.80010717.799 Ardwick 224.7 LV charges are £153.31. All charges apply until 29/6/2014. Proj ref d.80010717.799 MANCHESTER SOUTH 6.6kV D.80010717 Manc Cntrl Piccadilly Travis St Rein 28/09/2012 Expired | D13: MANCHESTER SOUTH | E13: 6.6kV | J13: 185 XXX | K13: 353 | L13: 412 | M13: 461 | O13: Chris Cliff | P13: 26706 | Q13: 26699 | R13: Stockport Planning | T13: OK IF NO ASC'S EXCEEDED
A14: Arnside | B14: 0 | C14: 0 | D14: LANCASTER | E14: 11kV | J14: 185 PICAS | K14: 270 | L14: 305 | M14: 370 | O14: Chris Reilly | P14: 86415 | R14: Planning Carlisle | T14: SCENARIO FOR NO ASC'S EXCEEDED
A15: Ashton (Golborne) | D15: SOUTH LANCS | E15: 6.6kV | J15: 185 Cu PILC | K15: 355 | L15: 400 | M15: 500 | O15: Chris Thompson | P15: 6557 | Q15: 6442 | R15: Statutory Carlisle | T15: WON'T WORK EVEN WITH SPLITTING
A16: Ashton (Ribble) | D16: PRESTON | E16: 6.6kV | J16: 185 Al PILC | K16: 280 | L16: 315 | M16: 390 | O16: Claire Knight | P16: 85313 | R16: Manchester | T16: WON'T WORK CAN'T SPLIT
A17: Ashton On Mersey | B17: 0 | C17: 0 | D17: MANCHESTER SOUTH | E17: 6.6kV | J17: 120 Cu PILC | K17: 280 | L17: 315 | M17: 380 | O17: Clive Mellor | P17: 26695 | Q17: 26699 | R17: Stockport Planning | T17: SEE NOTE IN FREE FORMAT SECTION
A18: Ashton Under Lyne T11 & T12 | D18: PEAK NORTH | E18: 6.6kV | J18: 120 Al PILC | K18: 220 | L18: 245 | M18: 300 | O18: Dan Garner | P18: 26694 | Q18: 26699 | R18: Stockport Planning | T18: FOR EXAMPLE ONLY
A19: Ashton Under Lyne T13 | D19: PEAK NORTH | E19: 6.6kV | J19: 0.5 Cu | K19: 530 | L19: 600 | M19: 670 | O19: Dan Harber | P19: 26694 | Q19: 26699 | R19: Stockport Planning | T19: NOT CRITICAL
A20: Ashwood Dale | B20: 0 | C20: 0 | D20: PEAK SOUTH | E20: 6.6kV | J20: 0.5 Al PILC | K20: 420 | L20: 475 | M20: 530 | O20: Daniel Sage | P20: 25277 | R20: Preston
A21: Askam & Dalton | B21: 0 | C21: 0 | D21: BARROW | E21: 11kV | J21: 0.4 Cu | K21: 475 | L21: 535 | M21: 595 | O21: Darren Mycock | P21: 22568 | Q21: 22314 | R21: Manchester
A22: Askerton castle | B22: 0 | C22: 0 | D22: CARLISLE | E22: 11kV | J22: 0.4 Al PILC | K22: 375 | L22: 420 | M22: 470 | O22: Dave Ashton | P22: 88950
A23: Aspatria | B23: 0 | C23: 0 | D23: WORKINGTON | E23: 11kV | J23: 0.3 Cu | K23: 410 | L23: 460 | M23: 500 | O23: Dave Barlow | P23: 81846 | Q23: 81841 | R23: Statutory Preston
A24: Astra Zeneca | D24: PEAK SOUTH | J24: 0.3 Al PILC | K24: 325 | L24: 365 | M24: 390 | O24: Dave Crowdy | P24: 86242 | Q24: 86009 | R24: Planning Kendal
A25: Atherton Town Centre | D25: SOUTH LANCS | E25: 11kV | J25: 0.25 Cu | K25: 370 | L25: 415 | M25: 440 | O25: Dave Garrett | P25: 26696 | Q25: 26699 | R25: Stockport Planning
A26: Athletic St | B26: 0 | C26: 0 | D26: BURNLEY & NELSON | E26: 6.6kV | J26: 0.25 Al | K26: 290 | L26: 325 | M26: 345 | O26: David Schofield | P26: 81843 | Q26: 81841 | R26: Statutory Preston
A27: Avenham | B27: 0 | C27: 0 | D27: PRESTON | E27: 6.6kV | J27: 0.2 Cu | K27: 320 | L27: 360 | M27: 385 | O27: David Woodworth | P27: 75465 | Q27: 75412 | R27: Hill Top
A28: Baguley | B28: 0 | C28: 0 | D28: MANCHESTER SOUTH | E28: 11kV | J28: 0.2 Al | K28: 250 | L28: 280 | M28: 300 | O28: Eric Coope | P28: 81813 | Q28: 81841 | R28: Statutory Preston
A29: Bamber Bridge | B29: 0 | C29: 0 | D29: CHORLEY | E29: 11kV | J29: 0.15 Cu | K29: 270 | L29: 305 | M29: 320 | O29: Eric Rennie | P29: 26704 | Q29: 26699 | R29: Stockport Planning
A30: Barbara St | B30: 0 | C30: 0 | D30: SOUTH LANCS | E30: 6.6kV | J30: 0.15 Al | K30: 210 | L30: 235 | M30: 250 | O30: Gary Davies | P30: 22849 | Q30: 22314 | R30: Manchester
A31: Barrow | D31: BARROW | E31: 11kV | J31: 0.1 Cu | K31: 220 | L31: 245 | M31: 255 | O31: Gavin Anderson | P31: 24263 | R31: System Devlopment
A32: Barton Dock Rd | B32: 0 | C32: 0 | D32: MANCHESTER NORTH | E32: 6.6kV | J32: 0.1 Al | K32: 170 | L32: 190 | M32: 195 | O32: Ged Horton | P32: 22049 | Q32: 22314 | R32: Manchester
A33: Bedford | B33: 0 | C33: 0 | D33: SOUTH LANCS | E33: 11kV | J33: 0.06 Cu | K33: 160 | L33: 175 | M33: 185 | O33: Geoff Gill | P33: 26703 | Q33: 26699 | R33: Stockport Planning
A34: Belgrave | B34: 0 | C34: 0 | D34: PEAK NORTH | E34: 6.6kV | J34: 0.06 Al | K34: 125 | L34: 135 | M34: 145 | O34: Glenn Hill | P34: 86165
A35: Benchill | B35: 0 | C35: 0 | D35: MANCHESTER SOUTH | E35: 11kV | J35: 0.04 Cu | K35: 130 | L35: 140 | M35: 145 | O35: Ian Bradley | P35: 26695 | Q35: 26699 | R35: Stockport Planning
A36: Bentham | B36: 0 | C36: 0 | D36: SETTLE | E36: 11kV | J36: 0.04 Al | K36: 100 | L36: 110 | M36: 110 | O36: Ian Diffenthal | P36: 81857 | Q36: 81732 | R36: Planning Preston
A37: BGC Westfield Point | J37: 0.025 Cu | K37: 92 | L37: 100 | M37: 100 | O37: Ian McCormack | P37: 81760 | Q37: 81732 | R37: Planning Preston
A38: Bispham | D38: BLACKPOOL | E38: 6.6kV | J38: 0.025 Al | K38: 72 | L38: 78 | M38: 78 | O38: Ian Walker | P38: 22931 | Q38: 22314 | R38: Manchester
A39: Blackbull | B39: 0 | C39: LV charges are £189.94. All charges apply until 12/10/2014. Proj ref d.80009716.799 Blackbull 195.07 LV charges are £189.94. All charges apply until 12/10/2014. Proj ref d.80009716.799 PRESTON 6.6kV D.80009716 Preston East Primary Reinf 04/04/2011 Expired | D39: PRESTON | E39: 6.6kV | O39: James Johannessen | P39: 26692 | Q39: 26699 | R39: Stockport Planning
A40: Blackburn | B40: 0 | C40: 0 | D40: BLACKBURN | E40: 6.6kV | O40: Jane Newton | P40: 22153 | Q40: 22314 | R40: Manchester
A41: Blackburn Rd Clayton | D41: BLACKBURN | E41: 6.6kV | O41: Jim Butler | P41: 22216 | Q41: 22314 | R41: Manchester
A42: Blackfriars | B42: 0 | C42: 0 | D42: MANCHESTER NORTH | E42: 6.6kV | O42: Jim Henderson | P42: 22264 | Q42: 22771 | R42: System Devlopment
A43: Blackley | B43: 0 | C43: 0 | D43: MANCHESTER NORTH | E43: 6.6kV | O43: Joe Davis | P43: 81273 | Q43: 81503 | R43: Statutory Preston
A44: Blackpool | B44: 0 | C44: 0 | D44: BLACKPOOL | E44: 6.6kV | O44: John Coulthard | P44: 6451 | Q44: 6442 | R44: Statutory Carlisle
A45: BNFL 9 | O45: John Hannah | P45: ENS
A46: BNFL Beckermet | O46: John Whiting | P46: 26703 | Q46: 26699 | R46: Stockport Planning
A47: BNFL11 | O47: John Wilkinson | P47: 23662 | R47: Planning Kendal
A48: Bollington | B48: 0 | C48: 0 | D48: PEAK SOUTH | E48: 11kV | O48: Jon Nickson | P48: 24896 | R48: Hilltop
A49: Bolton By Bowland | B49: 0 | C49: 0 | D49: 11KV | E49: 11kV | O49: Julian Shepherd | P49: 26698 | Q49: 26699 | R49: Stockport Planning
A50: Bolton Le Sands | B50: 0 | C50: 0 | D50: LANCASTER | E50: 11kV | O50: Karen McFadden | P50: 22111 | Q50: 22314 | R50: Manchester
A51: Bolton Waste | D51: SOUTH LANCS | O51: Keith Nicholls | P51: 81110 | Q51: 81503 | R51: Statutory Preston
A52: Botany Bay | B52: 0 | C52: 0 | D52: CHORLEY | E52: 11kV | O52: Keith Shepherd | P52: 88821
A53: Bow Lane | D53: CHORLEY | E53: 11kV | O53: Ken Harper | P53: 6440 | Q53: 6442 | R53: Statutory Carlisle
A54: Bowaters | B54: 0 | C54: 0 | D54: BARROW | E54: 11kV | O54: Kevin Bullock | P54: 86067 | Q54: 86009 | R54: Planning Kendal
A55: Bowdon | B55: 0 | C55: 0 | D55: MANCHESTER SOUTH | E55: 11kV | O55: Kianoush Naraghipour | P55: 26711 | Q55: 26699 | R55: Stockport Planning
A56: Bradford | B56: 0 | C56: 0 | D56: MANCHESTER SOUTH | E56: 6.6kV | O56: Laura Stelfox | P56: 86047 | Q56: 86009 | R56: Planning Kendal
A57: Bradshawgate | B57: 0 | C57: 0 | D57: SOUTH LANCS | E57: 6.6kV | O57: Lorraine Lowdon | P57: 6210 | Q57: 6146 | R57: Planning Kendal
A58: Bramhall | B58: 0 | C58: 0 | D58: PEAK SOUTH | E58: 11kV | O58: Lukasz Bochinski | P58: 26708 | Q58: 26699 | R58: Stockport Planning
A59: Bridgewater | B59: 0 | C59: 0 | D59: MANCHESTER SOUTH | E59: 6.6kV | O59: Marius Greef | P59: ENS
A60: Brinksway | B60: 0 | C60: 0 | D60: PEAK SOUTH | E60: 6.6kV | O60: Mark Griffiths | P60: ENS
A61: Broadheath | B61: 0 | C61: 0 | D61: MANCHESTER SOUTH | E61: 11kV | O61: Mark Knowles | P61: 81263 | Q61: 81503 | R61: Statutory Preston
A62: Broadway | B62: 0 | C62: 0 | D62: LANCASTER | E62: 6.6kV | O62: Martin Lord | P62: 81854 | Q62: 81732 | R62: Planning Preston
A63: Buckshaw | D63: CHORLEY | E63: 6.6kV | O63: Matt Savka | P63: 22781 | Q63: 22314 | R63: Manchester
A64: Burnley | B64: 0 | C64: 0 | D64: BURNLEY & NELSON | E64: 6.6kV | O64: Matthew Rigby | P64: 26707 | Q64: 26699 | R64: Stockport Planning
A65: Burnley Centre | B65: 0 | C65: 0 | D65: BURNLEY & NELSON | E65: 6.6kV | O65: Michelle Range | P65: 22561 | Q65: 22314 | R65: Manchester
A66: Burnley North | B66: 0 | C66: 0 | D66: BURNLEY & NELSON | E66: 6.6kV | O66: Mike Henderson | P66: 81813 | Q66: 81503 | R66: Statutory Preston
A67: Burrow Beck | B67: 0 | C67: Load transfers to Spring Garden Street chargeable as per Spring Garden Street | D67: LANCASTER | E67: 11kV | O67: Mike Jackson | P67: 81839 | Q67: 81503 | R67: Statutory Preston
A68: Burscough Bridge | D68: CHORLEY | E68: 11kV | O68: Mike Wharton | P68: 86196 | Q68: 86009 | R68: Planning Kendal
A69: Bury Town Centre | D69: SOUTH LANCS | E69: 6.6kV | O69: Murad Amin | P69: 24329 | R69: Salford Energy Solutions
A70: Calgarth | D70: KENDAL | O70: Neville Hartley | P70: 81799 | Q70: 81503 | R70: Statutory Preston
A71: Campbell St | B71: 0 | C71: 0 | D71: SOUTH LANCS | E71: 11kV | O71: Paul Boyer | P71: 22033 | Q71: 22314 | R71: Manchester
A72: Cannon St | B72: 0 | C72: 0 | D72: MANCHESTER NORTH | E72: 6.6kV | O72: Paul Griffiths | P72: 75410 | Q72: 75412 | R72: Hill Top
A73: Capontree | B73: 0 | C73: 0 | D73: CARLISLE | E73: 11kV | O73: Paul Robinson | P73: 26696 | Q73: 26699 | R73: Stockport Planning
A74: Carleton | B74: 0 | C74: 0 | D74: WORKINGTON | E74: 11kV | O74: Paul Thompson | P74: 26705 | Q74: 26699 | R74: Stockport Planning
A75: Carlisle North | D75: CARLISLE | E75: 11kV | O75: Pervez Muhammad | R75: Stockport
A76: Carr Lane | D76: PRESTON | E76: 11kV | O76: Peter Range | P76: 22018 | Q76: 22314 | R76: Manchester
A77: Carr St | B77: 0 | C77: 0 | D77: SOUTH LANCS | E77: 11kV | O77: Phil Snape | P77: 22287 | Q77: 22771 | R77: System Devlopment
A78: Castleton | B78: 0 | C78: 0 | D78: PEAK NORTH | E78: 6.6kV | O78: Phil Taylor | P78: 81771 | Q78: 81841 | R78: Statutory Preston
A79: Catterall Waterworks | D79: LANCASTER | E79: 6.6kV | O79: Phil Walker | P79: 26697 | Q79: 26699 | R79: Stockport Planning
A80: Cecil St | B80: 0 | C80: 0 | D80: BLACKPOOL | E80: 6.6kV | O80: Pushpa Henderson | P80: 24398 | R80: Preston Energy Solutions
A81: Cement Works | D81: BURNLEY & NELSON | O81: Rachel Rayton | P81: 85279 | Q81: 85392 | R81: Manchester
A82: Central Manchester | B82: 0 | C82: LV charges are £153.31. HV charges for network connected load £224.70. Sole use of spare CB add £28,865 All charges apply until 29/6/2014. Proj ref d.80010717.799Central Manchester 188.13 LV charges are £153.31. HV charges for network connected load £224.70. Sole use of spare CB add £28,865 All charges apply until 29/6/2014. Proj ref d.80010717.799 MANCHESTER NORTH 6.6kV D.80010717 Manc Cntrl Piccadilly Travis St Rein 28/09/2012 Expired | D82: MANCHESTER NORTH | E82: 6.6kV | O82: Ray Cramer | P82: 22043 | Q82: 22314 | R82: Manchester
A83: Chadderton | B83: 0 | C83: 0 | D83: PEAK NORTH | E83: 6.6kV | O83: Richard Warren | P83: 26707 | Q83: 26699 | R83: Stockport Planning
A84: Chamberhall | B84: 0 | C84: 0 | D84: SOUTH LANCS | E84: 6.6kV | O84: Ryan Austin | P84: 81861 | Q84: 81732 | R84: Planning Preston
A85: Chapel Wharf | D85: MANCHESTER NORTH | E85: 6.6kV | O85: Sarah Morris | R85: Preston
A86: Chassen Rd | B86: 0 | C86: 0 | D86: MANCHESTER NORTH | E86: 6.6kV | O86: Sarah Seabrook | P86: 81537 | Q86: 81503 | R86: Planning Preston
A87: Chatsworth St | B87: 0 | C87: 0 | D87: BARROW | E87: 11kV | O87: Simon Little | P87: 86017 | Q87: 86009 | R87: Planning Kendal
A88: Cheadle Heath | B88: 0 | C88: 0 | D88: PEAK SOUTH | E88: 6.6kV | O88: Steve Hanson | P88: 81813 | Q88: 81841 | R88: Statutory Preston
A89: Cheadle Hulme | B89: 0 | C89: 0 | D89: MANCHESTER SOUTH | E89: 11kV | O89: Steve Hitchmough | R89: Stockport Planning
A90: Cheetham Hill | B90: 0 | C90: 0 | D90: MANCHESTER NORTH | E90: 6.6kV | O90: Stewart Riley | P90: 81847 | Q90: 81732 | R90: Planning Preston
A91: Chester Rd T11 & T12 | B91: 0 | C91: LV connections requiring 3rd Tx £29.29 Charges apply until Sep 2016. Proj ref d.80013710.799Chester Rd T11 & T12 65.09 LV connections requiring 3rd Tx £29.29 Charges apply until Sep 2016. Proj ref d.80013710.799 MANCHESTER SOUTH 6.6kV D.80013710 Chester road Reinforcement 01/09/2011 Expired | D91: MANCHESTER SOUTH | E91: 6.6kV | O91: Stuart Smith | P91: 81794 | Q91: 81732 | R91: Planning Preston
A92: Chester Rd T13 | D92: MANCHESTER SOUTH | E92: 6.6kV | O92: Stuart Telford | P92: 6414 | Q92: 6442 | R92: Statutory Carlisle
A93: Chorley South | B93: 0 | C93: No charge for LV connectionsProj ref d.80014674.799 Chorley South 65.76 No charge for LV connectionsProj ref d.80014674.799 CHORLEY 11kV D.80014674 Chorley 33kV Network Rein X 02/03/2012 Expired | D93: CHORLEY | E93: 11kV | O93: Tony Coughlan | P93: 26695 | Q93: 26699 | R93: Stockport Planning
A94: Chorlton | B94: 0 | C94: 0 | D94: MANCHESTER SOUTH | E94: 6.6kV | O94: Trevor Bloor | P94: 26694 | Q94: 26699 | R94: Stockport Planning
A95: Christie | D95: MANCHESTER SOUTH | O95: Val Egerton | P95: 22075 | Q95: 22314 | R95: Manchester
A96: Church | B96: 0 | C96: 0 | D96: RAWTENSTALL & ACCRINGTON | E96: 6.6kV | O96: Walter Harris | P96: 26697 | Q96: 26699 | R96: Stockport Planning
A97: Clarendon Rd | B97: 0 | C97: 0 | D97: BLACKBURN | E97: 6.6kV | O97: Spare 13
A98: Claughton | B98: 0 | C98: 0 | D98: LANCASTER | E98: 11kV | O98: Spare 14
A99: Cleveleys | B99: 0 | C99: 0 | D99: BLACKPOOL | E99: 6.6kV | O99: Spare 15
A100: Clifton Junction | B100: 0 | C100: 0 | D100: SOUTH LANCS | E100: 11kV | O100: Spare 16
A101: Clifton Marsh | D101: PRESTON | E101: 6.6kV | O101: Spare 17
A102: Clitheroe Works | D102: BURNLEY & NELSON | O102: Spare 18
A103: Clover Hill | B103: 0 | C103: 0 | D103: BURNLEY & NELSON | E103: 6.6kV | O103: Spare 19
A104: Cog Lane | D104: BURNLEY & NELSON | E104: 6.6kV | O104: Spare 20
A105: Coniston | B105: 0 | C105: 0 | D105: BARROW | E105: 11kV | O105: Spare 21
A106: Copse Rd | B106: 0 | C106: 0 | D106: BLACKPOOL | E106: 6.6kV | O106: Spare 22
A107: Cox Green | B107: 0 | C107: 0 | D107: SOUTH LANCS | E107: 11kV | O107: Spare 23
A108: CPS | D108: BLACKBURN | O108: Spare 24
A109: Craggs Row & Bushell St | B109: 0 | C109: LV charges are £189.94. All charges apply until 12/10/2014. Proj ref d.80009716.799 Craggs Row & Bushell St 195.07 LV charges are £189.94. All charges apply until 12/10/2014. Proj ref d.80009716.799 PRESTON 6.6kV D.80009716 Preston East Primary Reinf 04/04/2011 Expired | D109: PRESTON | E109: 6.6kV | O109: Spare 25
A110: Crown Lane | D110: SOUTH LANCS | E110: 11kV | O110: Spare 26
A111: Culcheth | B111: 0 | C111: 0 | D111: SOUTH LANCS | E111: 11kV | O111: Spare 27
A112: Cutacre | D112: SOUTH LANCS | E112: 11kV | O112: Spare 28
A113: Davyhulme | D113: MANCHESTER SOUTH
A114: Deansgate | B114: 0 | C114: 0 | D114: MANCHESTER NORTH | E114: 6.6kV
A115: Denton East | B115: 0 | C115: 0 | D115: MANCHESTER SOUTH | E115: 6.6kV
A116: Denton West | B116: 0 | C116: 0 | D116: MANCHESTER SOUTH | E116: 6.6kV
A117: Dickinson St | D117: MANCHESTER NORTH | E117: 6.6kV
A118: Didsbury | D118: MANCHESTER SOUTH | E118: 6.6kV
A119: Disley | B119: 0 | C119: 0 | D119: PEAK SOUTH | E119: 11kV
A120: Dodgson Rd | B120: 0 | C120: LV charges are £78.86. All charges apply until 12/10/2014. Proj ref d.80009716.799 Dodgson Rd 83.99 LV charges are £78.86. All charges apply until 12/10/2014. Proj ref d.80009716.799 PRESTON 6.6kV D.80009716 Preston East Primary Reinf 04/04/2011 Expired | D120: PRESTON | E120: 6.6kV
A121: Douglas St | B121: 0 | C121: 0 | D121: PRESTON | E121: 6.6kV
A122: Droylsden East | B122: 0 | C122: 0 | D122: MANCHESTER SOUTH | E122: 6.6kV
A123: Dukinfield | B123: 0 | C123: 0 | D123: PEAK NORTH | E123: 6.6kV
A124: Dumers Lane | D124: SOUTH LANCS | E124: 11kV
A125: Dumplington | B125: 0 | C125: 0 | D125: MANCHESTER NORTH | E125: 11kV
A126: Eastlands | B126: 0 | C126: 0 | D126: MANCHESTER NORTH | E126: 6.6kV
A127: Easton | B127: 0 | C127: 0 | D127: CARLISLE | E127: 11kV
A128: Egremont | B128: 0 | C128: 0 | D128: WORKINGTON | E128: 11kV
A129: Embleton | B129: 0 | C129: 0 | D129: WORKINGTON | E129: 11kV
A130: Exchange St | B130: 0 | C130: 0 | D130: BLACKBURN | E130: 6.6kV
A131: Failsworth | B131: 0 | C131: 0 | D131: MANCHESTER NORTH | E131: 6.6kV
A132: Fallowfield | B132: 0 | C132: 0 | D132: MANCHESTER SOUTH | E132: 6.6kV
A133: Farnworth | B133: 0 | C133: 0 | D133: SOUTH LANCS | E133: 11kV
A134: Feniscowles | B134: 0 | C134: 0 | D134: BLACKBURN | E134: 6.6kV
A135: Ferodo | B135: 0 | C135: 0 | D135: PEAK SOUTH | E135: 11kV
A136: Flat Lane | D136: SETTLE | E136: 11kV
A137: Frederick Rd | B137: 0 | C137: 0 | D137: MANCHESTER NORTH | E137: 6.6kV
A138: Fusehill | D138: CARLISLE | E138: 11kV
A139: Gale | B139: 0 | C139: 0 | D139: PEAK NORTH | E139: 6.6kV
A140: Gale Bay | D140: PENRITH
A141: Garstang | B141: 0 | C141: 0 | D141: LANCASTER | E141: 6.6kV
A142: Gatley | B142: 0 | C142: 0 | D142: MANCHESTER SOUTH | E142: 6.6kV
A143: Gidlow | B143: 0 | C143: 0 | D143: SOUTH LANCS | E143: 6.6kV
A144: Gillsrow | B144: 0 | C144: 0 | D144: PENRITH | E144: 11kV
A145: Glaxo | B145: 0 | C145: 0 | D145: BARROW | E145: 11kV
A146: Glossop | B146: 0 | C146: 0 | D146: PEAK NORTH | E146: 11kV
A147: Golborne | B147: 0 | C147: 0 | D147: SOUTH LANCS | E147: 11kV
A148: Gowhole | B148: 0 | C148: 0 | D148: PEAK SOUTH | E148: 11kV
A149: Grane Rd & Prinny Hill | B149: 0 | C149: No charge for LV connections. Proj ref d.80014565.799 Grane Rd & Prinny Hill 47.63 No charge for LV connections. Proj ref d.80014565.799 RAWTENSTALL & ACCRINGTON 6.6kV D.80014565 Rawtenstall Road Reinforcement 31/08/2012 Expired | D149: RAWTENSTALL & ACCRINGTON | E149: 6.6kV
A150: Grange | B150: 0 | C150: 0 | D150: BARROW | E150: 11kV
A151: Great Harwood | B151: 0 | C151: 0 | D151: BLACKBURN | E151: 6.6kV
A152: Green Lane (Altrincham) | D152: MANCHESTER SOUTH | E152: 11kV
A153: Green Lane (Hazel Grove) | D153: PEAK SOUTH | E153: 11kV
A154: Green St T11 | D154: SOUTH LANCS | E154: 6.6kV
A155: Green St T12 & T13 | B155: 0 | C155: 0 | D155: SOUTH LANCS | E155: 6.6kV
A156: Greenfield | D156: PEAK NORTH | E156: 11kV
A157: Greenhill | B157: 0 | C157: 0 | D157: PEAK NORTH | E157: 6.6kV
A158: Griffin | B158: 0 | C158: 0 | D158: BLACKBURN | E158: 6.6kV
A159: Hadfield | B159: 0 | C159: 0 | D159: PEAK NORTH | E159: 11kV
A160: Hall Cross | B160: 0 | C160: 0 | D160: PRESTON | E160: 6.6kV
A161: Handforth | B161: 0 | C161: 0 | D161: PEAK SOUTH | E161: 11kV
A162: Hanging Bridge | B162: 0 | C162: No charge for LV connections. Proj ref d.80014674.799Hanging Bridge 65.76 No charge for LV connections. Proj ref d.80014674.799 CHORLEY 11kV D.80014674 Chorley 33kV Network Rein X 02/03/2012 Expired | D162: CHORLEY | E162: 11kV
A163: Hareholme | B163: 0 | C163: No charge for LV connections. Proj ref d.80014565.799 Hareholme 47.63 No charge for LV connections. Proj ref d.80014565.799 RAWTENSTALL & ACCRINGTON 6.6kV D.80014565 Rawtenstall Road Reinforcement 31/08/2012 Expired | D163: RAWTENSTALL & ACCRINGTON | E163: 6.6kV
A164: Harpurhey | B164: 0 | C164: 0 | D164: MANCHESTER NORTH | E164: 6.6kV
A165: Harwood | B165: 0 | C165: 0 | D165: SOUTH LANCS | E165: 11kV
A166: Hattersley | D166: PEAK NORTH | E166: 11kV
A167: Haverthwaite | B167: 0 | C167: 0 | D167: BARROW | E167: 11kV
A168: Haweswater | D168: PENRITH
A169: Hawk Green | B169: 0 | C169: 0 | D169: PEAK SOUTH | E169: 11kV
A170: Haydock | D170: SOUTH LANCS | E170: 11kV
A171: HDA No1 & HDA No2 | D171: WORKINGTON | E171: 11kV
A172: Heady Hill | B172: 0 | C172: 0 | D172: SOUTH LANCS | E172: 6.6kV
A173: Heap Bridge | B173: 0 | C173: 0 | D173: SOUTH LANCS | E173: 6.6kV
A174: Heasandford | B174: 0 | C174: 0 | D174: BURNLEY & NELSON | E174: 6.6kV
A175: Heaton Moor | B175: 0 | C175: 0 | D175: PEAK SOUTH | E175: 6.6kV
A176: Heaton Norris | B176: 0 | C176: 0 | D176: PEAK SOUTH | E176: 6.6kV
A177: Helwith Bridge | B177: 0 | C177: 0 | D177: SETTLE | E177: 11kV
A178: Hensingham | B178: 0 | C178: 0 | D178: WORKINGTON | E178: 11kV
A179: Heyrod | D179: PEAK NORTH | E179: 6.6kV
A180: Heyside | B180: 0 | C180: 0 | D180: PEAK NORTH | E180: 6.6kV
A181: Heywood | B181: 0 | C181: No charge for LV connections. Charges applicable until June 2015 . Proj ref d.80011904.799 Heywood 53.25 No charge for LV connections. Charges applicable until June 2015 . Proj ref d.80011904.799 SOUTH LANCS 6.6kV D.80011904 Heywood 33kV Reinforcement 04/05/2010 Expired | D181: SOUTH LANCS | E181: 6.6kV
A182: Higher Mill | B182: 0 | C182: 0 | D182: MANCHESTER SOUTH | E182: 6.6kV
A183: Higher Walton | B183: 0 | C183: 0 | D183: CHORLEY | E183: 11kV
A184: Hill Top T11 & T12 | B184: 0 | C184: 0 | D184: SOUTH LANCS | E184: 11kV
A185: Hill Top T13 | D185: SOUTH LANCS | E185: 11kV
A186: Hindley Green | D186: SOUTH LANCS | E186: 11kV
A187: Hollinwood | B187: 0 | C187: 0 | D187: PEAK NORTH | E187: 6.6kV
A188: Holme Rd | B188: 0 | C188: 0 | D188: CHORLEY | E188: 11kV
A189: Holt St | B189: 0 | C189: 0 | D189: SOUTH LANCS | E189: 11kV
A190: Hurst | B190: 0 | C190: 0 | D190: PEAK NORTH | E190: 6.6kV
A191: Hutton End & Skelton C | B191: 0 | C191: 0 | D191: PENRITH | E191: 11kV
A192: Hyde | B192: 0 | C192: 0 | D192: PEAK NORTH | E192: 6.6kV
A193: Hyndburn Rd | B193: 0 | C193: 0 | D193: RAWTENSTALL & ACCRINGTON | E193: 6.6kV
A194: ICI Hillhouse | D194: PRESTON
A195: Iggesund | D195: WORKINGTON
A196: India St | B196: 0 | C196: 0 | D196: BLACKBURN | E196: 6.6kV
A197: Ingleton | B197: 0 | C197: 0 | D197: SETTLE | E197: 11kV
A198: Irlam | B198: 172.04 | C198: No charge for LV connections. Proj ref d.80016673.799 Irlam 172.04 No charge for LV connections. Proj ref d.80016673.799 MANCHESTER NORTH 6.6kV Project number quoted does not exist - Assumed D.80020970 Irlam Primary s/s Reinforcement 11/02/2015 Live. EXPIRES 10/02/2020 | D198: MANCHESTER NORTH | E198: 6.6kV
A199: James St | B199: 0 | C199: 0 | D199: CARLISLE | E199: 11kV
A200: Jameson Rd NWWA | D200: PRESTON
... 202 more rows

Sheet Study request guidance notes (hidden)

Sheet G&P application (hidden)
K1: Regulatory Classification:
K2: Customer funded feasibility study
K3: Budget Quote<1MVA (10 Working Days)
K4: Budget Quote>1MVA (20 Working Days)
B5: REQUEST FOR G&P WORK | K5: Statutory Provision of HV Demand Quote (35 Working Days)
K6: Statutory Provision of HV Generation Quote (65 Working Days)
K7: Statutory Provision of EHV Demand/Generation Quote (65 Working Days)
B8: Requested by: | D8: =Input!E6 -> Peter Range | E8: Date: | F8: =IF(Input!L3="","",Input!L3) -> 2019-07-31 | K8: Competitive Provision of HV Demand Quote (20 Working Days)
K9: Competitive Provision of HV Generation Quote (50 Working Days)
B10: Contact Phone Number: | D10: =Input!H6 -> 22018 | E10: Request Type: | K10: Competitive Provision of EHV (33kV) Demand Quote (50 Working Days)
K11: Competitive Provision of EHV (33kV) Generation Quote (62 Working Days)
B12: Scheme Title: | D12: =IF(Input!E3="","",Input!E3) -> Stagecoach Sharston Depot, Leestone Road, Wythenshawe, Manchester | K12: Competitive Provision of 132kV Demand/Generation (62 Working Days)
K13: Request Type:
B14: D&C WFM Ref: | D14: =IF(Input!L4="","",Input!L4) -> 5500153017A | K14: Study Only
K15: Extension Only
B16: New Load: | D16: =Input!L6 -> 1500 | E16: New Generation: | F16: =Input!O6 -> 0 | K16: Study and Extension
K17: Indicative Quote
B18: Grid Ref: | C18: Eastings | E18: Primary: | F18: =Input!E14 -> NORTHENDEN
K19: Voltage:
C20: Northings | E20: Voltage: | K20: LV
K21: 6.6kV
B22: Regulatory Classification: | K22: 11kV
K23: 33kV
B24: Is Study Fee Applicable? | K24: 132kV
C26: If 'Yes' which cost is applicable? | K26: Is Study Fee Applicable?
K27: Yes
B28: Application Received: | E28: Target Quote Date: | K28: No
B30: Supporting Info/Comments | K30: If 'Yes' which cost is applicable?
K31: LV Demand upto1MVA
K32: HV Demand up to & including MVA
K33: HV Demand over 2MVA
K34: 33kV Demand up to & including 10MVA
K35: 33kV Demand >10MVA
K36: 132kV Demand
K37: Generation up to & including 1MW
K38: Generation >1MW up to & including 4MW
K39: Generation >4MW up to & including 10MW
K40: Generation >10MW up to & including 40MW
K41: Generation >40MW up to & including 100MW
K42: Generation >100MW
B44: The WFM SAP number for this work is: | E44: 56
K45: 10 working days
B46: Time Available for Study: | E46: Target Completion Date: | K46: 16 working days
K47: 20 working days
B48: Time Available for Quote: | E48: Target Completion Date:
B52: version 5 Mar 2012

Sheet Cable ratings (hidden)
B1: RATINGS USED
B3: BELOW ARE THE RATINGS USED FOR THE CALCULATIONS UNDERTAKEN BY 'LOADCHECK' .
B4: Subject to the parameters used being applicable (see below), this table may be used as a crib-sheet for general use.
B7: (The information in this table has been taken from the 'Summary of Cable Ratings' on Page 37
B8: of CP203 ISSUE 4 (12/01/09). Please refer to CP203 for the parameters used).
B10: Size | C10: Continuous | D10: Cyclic | E10: Distribution | F10: Comment
B11: 95 XXX | C11: 245 | D11: 277 | E11: 277 | F11: TRIPLEX
B12: 95 PICAS | C12: 185 | D12: 210 | E12: 245 | F12: ACCAS
B13: 95 Cu | C13: 245 | D13: 275 | E13: 330 | F13: PILC
B14: 95 Al | C14: 190 | D14: 215 | E14: 260 | F14: PILC
B15: 300 XXX | C15: 461 | D15: 521 | E15: 521 | F15: TRIPLEX
B16: 300 PICAS | C16: 355 | D16: 400 | E16: 490 | F16: ACCAS
B17: 300 Cu | C17: 460 | D17: 520 | E17: 665 | F17: PILC
B18: 300 Al | C18: 365 | D18: 410 | E18: 525 | F18: PILC
B19: 240 Cu | C19: 410 | D19: 460 | E19: 460 | F19: PILC
B20: 240 Al | C20: 325 | D20: 365 | E20: 460 | F20: PILC
B21: 185 XXX | C21: 353 | D21: 399 | E21: 399 | F21: TRIPLEX
B22: 185 PICAS | C22: 270 | D22: 305 | E22: 370 | F22: ACCAS
B23: 185 Cu | C23: 355 | D23: 400 | E23: 500 | F23: PILC
B24: 185 Al | C24: 280 | D24: 315 | E24: 390 | F24: PILC
B25: 120 Cu | C25: 280 | D25: 315 | E25: 380 | F25: PILC
B26: 120 Al | C26: 220 | D26: 245 | E26: 300 | F26: PILC
B27: 0.5 Cu | C27: 530 | D27: 600 | E27: 670 | F27: PILC
B28: 0.5 Al | C28: 420 | D28: 475 | E28: 530 | F28: PILC
B29: 0.4 Cu | C29: 475 | D29: 535 | E29: 595 | F29: PILC
B30: 0.4 Al | C30: 375 | D30: 420 | E30: 470 | F30: PILC
B31: 0.3 Cu | C31: 410 | D31: 460 | E31: 500 | F31: PILC
B32: 0.3 Al | C32: 325 | D32: 365 | E32: 390 | F32: PILC
B33: 0.25 Cu | C33: 370 | D33: 415 | E33: 440 | F33: PILC
B34: 0.25 Al | C34: 290 | D34: 325 | E34: 345 | F34: PILC
B35: 0.2 Cu | C35: 320 | D35: 360 | E35: 385 | F35: PILC
B36: 0.2 Al | C36: 250 | D36: 280 | E36: 300 | F36: PILC
B37: 0.15 Cu | C37: 270 | D37: 305 | E37: 320 | F37: PILC
B38: 0.15 Al | C38: 210 | D38: 235 | E38: 250 | F38: PILC
B39: 0.1 Cu | C39: 220 | D39: 245 | E39: 255 | F39: PILC
B40: 0.1 Al | C40: 170 | D40: 190 | E40: 195 | F40: PILC
B41: 0.06 Cu | C41: 160 | D41: 175 | E41: 185 | F41: PILC
B42: 0.06 Al | C42: 125 | D42: 135 | E42: 145 | F42: PILC
B43: 0.04 Cu | C43: 130 | D43: 140 | E43: 145 | F43: PILC
B44: 0.04 Al | C44: 100 | D44: 110 | E44: 110 | F44: PILC
B45: 0.025 Cu | C45: 92 | D45: 100 | E45: 100 | F45: PILC
B46: 0.025 Al | C46: 72 | D46: 78 | E46: 78 | F46: PILC
B49: COLOUR CODE USED IN THIS TABLE:
D51: - TRIPLEX
D53: - ACCAS
D55: - ALUMINIUM CONDUCTOR
D57: - COPPER CONDUCTOR

Sheet ASL calculation (hidden)
C1: Calculation of Ratings of Auto Sectionalising Links
A3: Job Ref: | B3: =Input!L4 -> 5500153017A
C7: EXISTING | H7: PROPOSED
B8: =Input!V9 -> 6.6 | C8: kV select O/H line Voltage | G8: =B8 -> 6.6 | H8: kV select O/H line Voltage
B10: T/F kVA Nameplate rating * | G10: T/F kVA Nameplate rating
B11: 1ph T/Fs | D11: 3ph T/Fs | G11: 1ph T/Fs | I11: 3ph T/Fs
A30: Totals | B30: =SUM(B12:B29) -> 0 | C30: kVA | D30: =SUM(D12:D29) -> 0 | E30: kVA | F30: Totals | G30: =SUM(G12:G29) -> 0 | H30: kVA | I30: =SUM(I12:I29) -> 0 | J30: kVA
A31: FLC | B31: =B30/B8 -> 0 | C31: Amps | D31: =D30/B8/SQRT(3) -> 0 | E31: Amps | F31: FLC | G31: =G30/G8 -> 0 | H31: Amps | I31: =I30/G8/SQRT(3) -> 0 | J31: Amps
C33: Total Max Ph Current | D33: =B31+D31 -> 0 | E33: Amps | H33: Total Max Ph Current | I33: =G31+I31 -> 0 | J33: Amps
C34: Mag inrush Current | D34: =D33*2.5 -> 0 | E34: Amps | H34: Mag inrush Current | I34: =I33*2.5 -> 0 | J34: Amps
B36: =IF(D34>200,"** NOT SUITABLE for ASLs**","Rating of ASLs Req | MIN Fault Level MVA") -> Rating of ASLs Req | MIN Fault Level MVA | G36: =IF(I34>200,"** NOT SUITABLE for ASLs**","Rating of ASLs Req | MIN Fault Level MVA") -> Rating of ASLs Req | MIN Fault Level MVA
B37: (Pick-up Current) | D37: 1ph | E37: 3ph | G37: (Pick-up Current) | I37: 1ph | J37: 3ph
B38: =IF(D34>0,LOOKUP(D34,C54:C59,D54:D59),"") ->  | C38: AMPS | D38: =IF(D34>0,B38*B8*2/1000,"") ->  | E38: =IF(D34>0,B38*B8*2*SQRT(3)/1000,"") ->  | G38: =IF(I34>0,LOOKUP(I34,C54:C59,D54:D59),"") ->  | H38: AMPS | I38: =IF(I34>0,G38*G8*2/1000,"") ->  | J38: =IF(I34>0,G38*G8*2*SQRT(3)/1000,"") -> 
B41: * Enter the namplate rating of all transformers protected by the ASLs
B42: Ensuring that the correct column is used for either single or three phase.
B44: The Minimum Fault level is to ensure correct operation of links under fault conditions.
B45: This must be measured at the extreme end of the circuits controlled by the ASLs
B47: NB. Before ordering ASL links the type of mounting must be confirmed.
B49: For help using this sheet please contact Neville Hartley 81263
B51: N. Hartley int 81263 | D51: 26/11/2009 | F51: Calculations based on EPD321 Para 4.6
C54: 1 | D54: 25
C55: 25 | D55: 40
C56: 40 | D56: 63
C57: 63 | D57: 100
C58: 100 | D58: 200
C59: 200

Sheet Splitting feeder calculatio (3) (hidden)
A1: Feeder Name: | B1: Askam - Duddon Road | N1: =Input!U9 -> 6600
N2: Diversity
A3: Substation name | B3: Substation number | C3: MD of Tx | F3: Diversified load (Amps) | N3: =C28/C27 -> 0.5132002393
A4: Duddon Road | B4: 616064 | C4: 500 | D4: kVA | E4: =SUM(C4*1000)/($N$1*SQRT(3)) -> 43.73865676 | F4: =SUM((C4*1000)/($N$1*SQRT(3)))*$C$30 -> 22.44668911 | N4: FALSE | O4: =IF(N4=TRUE,F4,0) -> 0 | P4: =IF(N4=FALSE,F4,0) -> 22.44668911
A5: St Georges Square | B5: 618006 | C5: 400 | D5: kVA | E5: 34.99092541 | F5: 17.95735129 | N5: FALSE | O5: 0 | P5: 17.95735129
A6: Haverigg Windfarm 'D' | B6: 619460 | C6: 40 | D6: kVA | E6: 3.499092541 | F6: 1.795735129 | N6: FALSE | O6: 0 | P6: 1.795735129
A7: Back Duke St. | B7: 616006 | C7: 360 | D7: kVA | E7: 31.49183286 | F7: 16.16161616 | N7: FALSE | O7: 0 | P7: 16.16161616
A8: Kings Quarry | B8: 616009 | C8: 415 | D8: kVA | E8: 36.30308511 | F8: 18.63075196 | N8: FALSE | O8: 0 | P8: 18.63075196
A9: Lowther Rd | B9: 616007 | C9: 325 | D9: kVA | E9: 28.43012689 | F9: 14.59034792 | N9: FALSE | O9: 0 | P9: 14.59034792
A10: Moor End | B10: 610087 | C10: 15 | D10: kVA | E10: 1.312159703 | F10: 0.6734006734 | N10: FALSE | O10: 0 | P10: 0.6734006734
A11: Oxenbows | B11: 610078 | C11: 200 | D11: kVA | E11: 17.4954627 | F11: 8.978675645 | N11: FALSE | O11: 0 | P11: 8.978675645
A12: Moor Cotts | B12: 610087 | C12: 500 | D12: kVA | E12: 43.73865676 | F12: 22.44668911 | N12: FALSE | O12: 0 | P12: 22.44668911
A13: Back Albert St. | B13: 616012 | C13: 800 | D13: kVA | E13: 69.98185081 | F13: 35.91470258 | N13: FALSE | O13: 0 | P13: 35.91470258
A14: Queens Street | B14: 616015 | C14: 600 | D14: kVA | E14: 52.48638811 | F14: 26.93602694 | N14: FALSE | O14: 0 | P14: 26.93602694
A15: Effluent Pump | B15: 616222 | C15: 200 | D15: kVA | E15: 17.4954627 | F15: 8.978675645 | N15: FALSE | O15: 0 | P15: 8.978675645
A16: Wellington Street | B16: 616016 | C16: 100 | D16: kVA | E16: 8.747731351 | F16: 4.489337823 | N16: FALSE | O16: 0 | P16: 4.489337823
A17: Furness Street | B17: 616019 | D17: kVA | E17: 0 | F17: 0 | N17: FALSE | O17: 0 | P17: 0
A18: Argyle Street | B18: 616014 | D18: kVA | E18: 0 | F18: 0 | N18: FALSE | O18: 0 | P18: 0
A19: Hearfields | B19: 616232 | D19: kVA | E19: 0 | F19: 0 | N19: FALSE | O19: 0 | P19: 0
D20: kVA | E20: 0 | F20: 0 | N20: FALSE | O20: 0 | P20: 0
D21: kVA | E21: 0 | F21: 0 | N21: FALSE | O21: 0 | P21: 0
D22: kVA | E22: 0 | F22: 0 | N22: FALSE | O22: 0 | P22: 0
D23: kVA | E23: 0 | F23: 0 | N23: FALSE | O23: 0 | P23: 0
D24: kVA | E24: 0 | F24: 0 | N24: FALSE | O24: 0 | P24: 0
D25: kVA | E25: 0 | F25: 0 | N25: FALSE | O25: 0 | P25: 0
B26: Total load (MD): | C26: =SUM(C4:C25) -> 4455 | D26: kVA | O26: =SUM(O4:O25) -> 0 | P26: =SUM(P4:P25) -> 200
B27: Total load (MD): | C27: =SUM(C26*1000)/($N$1*SQRT(3)) -> 389.7114317 | D27: Amps
B28: FLA load on feeder: | C28: 200 | D28: Amps
B29: Calculated Diversity: | C29: =N3 -> 0.5132002393 | F29: =IF(C29<0.5,"VERY LOW DIVERSITY",IF(C29>0.71,"","LOW DIVERSITY")) -> LOW DIVERSITY
B30: User Input Diversity: | C30: =C29 -> 0.5132002393
B31: Checked boxes: | C31: =O26 -> 0 | D31: Amps
B32: Un checked boxes: | C32: =P26 -> 200 | D32: Amps

Sheet Splitting feeder calculatio (2) (hidden)
A1: Feeder Name: | B1: Askam - Duddon Road | N1: =Input!U9 -> 6600
N2: Diversity
A3: Substation name | B3: Substation number | C3: MD of Tx | F3: Diversified load (Amps) | N3: =C28/C27 -> 0.5132002393
A4: Duddon Road | B4: 616064 | C4: 500 | D4: kVA | E4: =SUM(C4*1000)/($N$1*SQRT(3)) -> 43.73865676 | F4: =SUM((C4*1000)/($N$1*SQRT(3)))*$C$30 -> 22.44668911 | N4: FALSE | O4: =IF(N4=TRUE,F4,0) -> 0 | P4: =IF(N4=FALSE,F4,0) -> 22.44668911
A5: St Georges Square | B5: 618006 | C5: 400 | D5: kVA | E5: 34.99092541 | F5: 17.95735129 | N5: FALSE | O5: 0 | P5: 17.95735129
A6: Haverigg Windfarm 'D' | B6: 619460 | C6: 40 | D6: kVA | E6: 3.499092541 | F6: 1.795735129 | N6: FALSE | O6: 0 | P6: 1.795735129
A7: Back Duke St. | B7: 616006 | C7: 360 | D7: kVA | E7: 31.49183286 | F7: 16.16161616 | N7: FALSE | O7: 0 | P7: 16.16161616
A8: Kings Quarry | B8: 616009 | C8: 415 | D8: kVA | E8: 36.30308511 | F8: 18.63075196 | N8: FALSE | O8: 0 | P8: 18.63075196
A9: Lowther Rd | B9: 616007 | C9: 325 | D9: kVA | E9: 28.43012689 | F9: 14.59034792 | N9: FALSE | O9: 0 | P9: 14.59034792
A10: Moor End | B10: 610087 | C10: 15 | D10: kVA | E10: 1.312159703 | F10: 0.6734006734 | N10: FALSE | O10: 0 | P10: 0.6734006734
A11: Oxenbows | B11: 610078 | C11: 200 | D11: kVA | E11: 17.4954627 | F11: 8.978675645 | N11: FALSE | O11: 0 | P11: 8.978675645
A12: Moor Cotts | B12: 610087 | C12: 500 | D12: kVA | E12: 43.73865676 | F12: 22.44668911 | N12: FALSE | O12: 0 | P12: 22.44668911
A13: Back Albert St. | B13: 616012 | C13: 800 | D13: kVA | E13: 69.98185081 | F13: 35.91470258 | N13: FALSE | O13: 0 | P13: 35.91470258
A14: Queens Street | B14: 616015 | C14: 600 | D14: kVA | E14: 52.48638811 | F14: 26.93602694 | N14: FALSE | O14: 0 | P14: 26.93602694
A15: Effluent Pump | B15: 616222 | C15: 200 | D15: kVA | E15: 17.4954627 | F15: 8.978675645 | N15: FALSE | O15: 0 | P15: 8.978675645
A16: Wellington Street | B16: 616016 | C16: 100 | D16: kVA | E16: 8.747731351 | F16: 4.489337823 | N16: FALSE | O16: 0 | P16: 4.489337823
A17: Furness Street | B17: 616019 | D17: kVA | E17: 0 | F17: 0 | N17: FALSE | O17: 0 | P17: 0
A18: Argyle Street | B18: 616014 | D18: kVA | E18: 0 | F18: 0 | N18: FALSE | O18: 0 | P18: 0
A19: Hearfields | B19: 616232 | D19: kVA | E19: 0 | F19: 0 | N19: FALSE | O19: 0 | P19: 0
D20: kVA | E20: 0 | F20: 0 | N20: FALSE | O20: 0 | P20: 0
D21: kVA | E21: 0 | F21: 0 | N21: FALSE | O21: 0 | P21: 0
D22: kVA | E22: 0 | F22: 0 | N22: FALSE | O22: 0 | P22: 0
D23: kVA | E23: 0 | F23: 0 | N23: FALSE | O23: 0 | P23: 0
D24: kVA | E24: 0 | F24: 0 | N24: FALSE | O24: 0 | P24: 0
D25: kVA | E25: 0 | F25: 0 | N25: FALSE | O25: 0 | P25: 0
B26: Total load (MD): | C26: =SUM(C4:C25) -> 4455 | D26: kVA | O26: =SUM(O4:O25) -> 0 | P26: =SUM(P4:P25) -> 200
B27: Total load (MD): | C27: =SUM(C26*1000)/($N$1*SQRT(3)) -> 389.7114317 | D27: Amps
B28: FLA load on feeder: | C28: 200 | D28: Amps
B29: Calculated Diversity: | C29: =N3 -> 0.5132002393 | F29: =IF(C29<0.5,"VERY LOW DIVERSITY",IF(C29>0.71,"","LOW DIVERSITY")) -> LOW DIVERSITY
B30: User Input Diversity: | C30: =C29 -> 0.5132002393
B31: Checked boxes: | C31: =O26 -> 0 | D31: Amps
B32: Un checked boxes: | C32: =P26 -> 200 | D32: Amps

Sheet CAF calculator (hidden)
B1: =IF(Input!L4="","",Input!L4) -> 5500153017A | C1: Apportionment for: | E1: =IF(Input!E3="","",Input!E3) -> Stagecoach Sharston Depot, Leestone Road, Wythenshawe, Manchester | H1: =IF(Input!L3="","",Input!L3) -> 2019-07-31
C3: 100% to | D3: VARIABLE | E3: CAF | F3: GROUPS | G3: 100% TO
B4: Line No: | C4: CUST | D4: A: T/F | E4: B: HV | F4: C: LV | G4: ENW
B5: 1
B6: 2
B7: 3
B8: 4
B9: 5
B10: 6
B11: 7
B12: 8
B13: 9
B14: 10
B15: 11
B16: 12
B17: 13
B18: 14
B19: 15
B20: 16
B21: 17
B22: 18
B23: 19
B24: 20
B25: 21
B26: 22
B27: 23
B28: 24 | H28: GRAND
B29: 25 | H29: TOTALS
B30: TOTALS | C30: =SUM(C5:C29) -> 0 | D30: =SUM(D5:D29) -> 0 | E30: =SUM(E5:E29) -> 0 | F30: =SUM(F5:F29) -> 0 | G30: =SUM(G5:G29) -> 0 | H30: =SUM(C30:G30) -> 0
A31: ENTER | B31: CAF P.U. > | C31: 1 | D31: 1 | E31: 1 | F31: 1 | G31: 0
A32: Normal | B32: Cust Charge | C32: =C30*C31 -> 0 | D32: =D30*D31 -> 0 | E32: =E30*E31 -> 0 | F32: =F30*F31 -> 0 | G32: =G30*G31 -> 0 | H32: =SUM(C32:G32) -> 0
A33: Values | B33: ENW Chg | C33: =C30-C32 -> 0 | D33: =D30-D32 -> 0 | E33: =E30-E32 -> 0 | F33: =F30-F32 -> 0 | G33: =G30-G32 -> 0 | H33: =SUM(C33:G33) -> 0
C35: "Variable CAF" total £ | D35: =SUM(D30:F30) -> 0 | G35: Variable CAF "Cust Charge" £ | H35: =SUM(D32:F32) -> 0
E38: Total generation capacity in kW: | G38: CAP £: | H38: =200*F38 -> 0
C40: =IF(AND(H38>0,H38<D35)," GEN CAP applies. - CAF to be ","Only used if Generator >") -> Only used if Generator > | F40: =IF(AND(H38>0,H38<D35),H35," ") ->  | G40: Customer
C41: =IF(AND(H38>0,H38<D35)," based on values shown:"," CAP Applies >") -> CAP Applies > | F41: =IF(AND(H38>0,H38<D35),D35," ") ->  | G41: Total
E43: Average CAF PU. is therefore: CUSTOMER: | F43: =IF(AND(H38>0,H38<D35),F40/F41," ") ->  | G43: ENW: | H43: =IF(AND(H38>0,H38<D35),1-F43," ") -> 
E45: Amount Chargable to ENW £: | F45: =IF(AND(H38>0,H38<D35),H38*H43," ") -> 
F48: ENW | H48: CUSTOMER
E49: Cost Chargeable in Full To Customer: | F49: =C33 -> 0 | H49: =C32 -> 0
E50: Cost Chargeable in Full To ENW: | F50: =G33 -> 0 | H50: =G32 -> 0
E51: Cost Apportioned: | F51: =IF(AND(H38>0,H38<D35),F45,SUM(D33:F33)) -> 0 | H51: =D35-F51 -> 0
E52: TOTALS: | F52: =SUM(F49:F51) -> 0 | H52: =SUM(H49:H51) -> 0
G54: TOTAL COST OF REINFORCEMENT: | H54: =SUM(C30:G30) -> 0
G55: =IF(AND(H38>0,H38<D35)," Value to use in WFM Apportionment>","Only used if Generator CAP Applies >") -> Only used if Generator CAP Applies > | H55: =IF(AND(H38>0,H38<D35),H51/D35," ") -> 

Sheet CAF calculator instructions (hidden)
B1: Y****** | C1: Apportionment for: | H1: =TODAY() -> 2020-09-25
C3: 100% to | D3: VARIABLE | E3: CAF | F3: GROUPS | G3: 100% TO
B4: Line No: | C4: CUST | D4: A: T/F | E4: B: HV | F4: C: LV | G4: ENW
B5: 1
B6: 2
B7: 3
B8: 4
B9: 5
B10: 6
B11: 7
B12: 8
B13: 9
B14: 10
B15: 11
B16: 12
B17: 13
B18: 14
B19: 15
B20: 16
B21: 17
B22: 18
B23: 19
B24: 20
B25: 21
B26: 22
B27: 23
B28: 24 | H28: GRAND
B29: 25 | H29: TOTALS
B30: TOTALS | C30: =SUM(C5:C29) -> 0 | D30: =SUM(D5:D29) -> 0 | E30: =SUM(E5:E29) -> 0 | F30: =SUM(F5:F29) -> 0 | G30: =SUM(G5:G29) -> 0 | H30: =SUM(C30:G30) -> 0
A31: ENTER | B31: CAF P.U. > | C31: 1 | D31: 1 | E31: 1 | F31: 1 | G31: 0
A32: Normal | B32: Cust Charge | C32: =C30*C31 -> 0 | D32: =D30*D31 -> 0 | E32: =E30*E31 -> 0 | F32: =F30*F31 -> 0 | G32: =G30*G31 -> 0 | H32: =SUM(C32:G32) -> 0
A33: Values | B33: ENW Chg | C33: =C30-C32 -> 0 | D33: =D30-D32 -> 0 | E33: =E30-E32 -> 0 | F33: =F30-F32 -> 0 | G33: =G30-G32 -> 0 | H33: =SUM(C33:G33) -> 0
C35: "Variable CAF" total £ | D35: =SUM(D30:F30) -> 0 | G35: Variable CAF "Cust Charge" £ | H35: =SUM(D32:F32) -> 0
E38: Total generation capacity in kW: | G38: CAP £: | H38: =200*F38 -> 0
C40: =IF(AND(H38>0,H38<D35)," GEN CAP applies. - CAF to be ","Only used if Generator >") -> Only used if Generator > | F40: =IF(AND(H38>0,H38<D35),H35," ") ->  | G40: Customer
C41: =IF(AND(H38>0,H38<D35)," based on values shown:"," CAP Applies >") -> CAP Applies > | F41: =IF(AND(H38>0,H38<D35),D35," ") ->  | G41: Total
E43: Average CAF PU. is therefore: CUSTOMER: | F43: =IF(AND(H38>0,H38<D35),F40/F41," ") ->  | G43: ENW: | H43: =IF(AND(H38>0,H38<D35),1-F43," ") -> 
E45: Amount Chargable to ENW £: | F45: =IF(AND(H38>0,H38<D35),H38*H43," ") -> 
F48: ENW | H48: CUSTOMER
E49: Cost Chargeable in Full To Customer: | F49: =C33 -> 0 | H49: =C32 -> 0
E50: Cost Chargeable in Full To ENW: | F50: =G33 -> 0 | H50: =G32 -> 0
E51: Cost Apportioned: | F51: =IF(AND(H38>0,H38<D35),F45,SUM(D33:F33)) -> 0 | H51: =D35-F51 -> 0
E52: TOTALS: | F52: =SUM(F49:F51) -> 0 | H52: =SUM(H49:H51) -> 0
G54: TOTAL COST OF REINFORCEMENT: | H54: =SUM(C30:G30) -> 0
H55: =IF(AND(H38>0,H38<D35),H51/D35," ") -> 

Sheet HV Circuit Lookup DATA (hidden)
A1: DistrTx | B1: Circuit | C1: PrimarySiteName | D1: DG Lookup
A2: 171971 | B2: F583 WHITWORTH ART GALLERY/TOMMY JOHNS | C2: ARDWICK | D2: Ardwick
A3: 171989 | B3: F583 WHITWORTH ART GALLERY/TOMMY JOHNS | C3: ARDWICK | D3: Ardwick
A4: 177459 | B4: F583 WHITWORTH ART GALLERY/TOMMY JOHNS | C4: ARDWICK | D4: Ardwick
A5: 177793 | B5: F583 WHITWORTH ART GALLERY/TOMMY JOHNS | C5: ARDWICK | D5: Ardwick
A6: 178625 | B6: F583 WHITWORTH ART GALLERY/TOMMY JOHNS | C6: ARDWICK | D6: Ardwick
A7: 166154 | B7: F3084 METROLINK PICCADILLY | C7: ARDWICK | D7: Ardwick
A8: 166161 | B8: F3084 METROLINK PICCADILLY | C8: ARDWICK | D8: Ardwick
A9: 167119 | B9: F3084 METROLINK PICCADILLY | C9: ARDWICK | D9: Ardwick
A10: 172511 | B10: F3084 METROLINK PICCADILLY | C10: ARDWICK | D10: Ardwick
A11: 166148 | B11: F1982 ARDWICK NWK | C11: ARDWICK | D11: Ardwick
A12: 171071 | B12: F1982 ARDWICK NWK | C12: ARDWICK | D12: Ardwick
A13: 171202 | B13: F1982 ARDWICK NWK | C13: ARDWICK | D13: Ardwick
A14: 171778 | B14: F1982 ARDWICK NWK | C14: ARDWICK | D14: Ardwick
A15: 171980 | B15: F1982 ARDWICK NWK | C15: ARDWICK | D15: Ardwick
A16: 171987 | B16: F1982 ARDWICK NWK | C16: ARDWICK | D16: Ardwick
A17: 171988 | B17: F1982 ARDWICK NWK | C17: ARDWICK | D17: Ardwick
A18: 171996 | B18: F1982 ARDWICK NWK | C18: ARDWICK | D18: Ardwick
A19: 171998 | B19: F1982 ARDWICK NWK | C19: ARDWICK | D19: Ardwick
A20: 171099 | B20: F833 APSLEY GROVE/BRYDON AVE | C20: ARDWICK | D20: Ardwick
A21: 171249 | B21: F833 APSLEY GROVE/BRYDON AVE | C21: ARDWICK | D21: Ardwick
A22: 177108 | B22: F833 APSLEY GROVE/BRYDON AVE | C22: ARDWICK | D22: Ardwick
A23: 177797 | B23: F833 APSLEY GROVE/BRYDON AVE | C23: ARDWICK | D23: Ardwick
A24: 171021 | B24: F991 HANOVER MILL/ABC ARDWICK | C24: ARDWICK | D24: Ardwick
A25: 171039 | B25: F991 HANOVER MILL/ABC ARDWICK | C25: ARDWICK | D25: Ardwick
A26: 171540 | B26: F991 HANOVER MILL/ABC ARDWICK | C26: ARDWICK | D26: Ardwick
A27: 171547 | B27: F991 HANOVER MILL/ABC ARDWICK | C27: ARDWICK | D27: Ardwick
A28: 172017 | B28: F991 HANOVER MILL/ABC ARDWICK | C28: ARDWICK | D28: Ardwick
A29: 172026 | B29: F991 HANOVER MILL/ABC ARDWICK | C29: ARDWICK | D29: Ardwick
A30: 171090 | B30: F3061 JMB ACOMB ST/PENCROFT WAY | C30: ARDWICK | D30: Ardwick
A31: 172252 | B31: F3061 JMB ACOMB ST/PENCROFT WAY | C31: ARDWICK | D31: Ardwick
A32: 172579 | B32: F3061 JMB ACOMB ST/PENCROFT WAY | C32: ARDWICK | D32: Ardwick
A33: 172615 | B33: F3061 JMB ACOMB ST/PENCROFT WAY | C33: ARDWICK | D33: Ardwick
A34: 177249 | B34: F3061 JMB ACOMB ST/PENCROFT WAY | C34: ARDWICK | D34: Ardwick
A35: 177310 | B35: F3061 JMB ACOMB ST/PENCROFT WAY | C35: ARDWICK | D35: Ardwick
A36: 178780 | B36: F3061 JMB ACOMB ST/PENCROFT WAY | C36: ARDWICK | D36: Ardwick
A37: 178868 | B37: F3061 JMB ACOMB ST/PENCROFT WAY | C37: ARDWICK | D37: Ardwick
A38: 166159 | B38: F996 CAKEBREAD ST | C38: ARDWICK | D38: Ardwick
A39: 171277 | B39: F996 CAKEBREAD ST | C39: ARDWICK | D39: Ardwick
A40: 171336 | B40: F996 CAKEBREAD ST | C40: ARDWICK | D40: Ardwick
A41: 172241 | B41: F996 CAKEBREAD ST | C41: ARDWICK | D41: Ardwick
A42: 177418 | B42: F996 CAKEBREAD ST | C42: ARDWICK | D42: Ardwick
A43: 166724 | B43: F464 MONTANA HS/PRINCESS ST 144 | C43: ARDWICK | D43: Ardwick
A44: 167694 | B44: F464 MONTANA HS/PRINCESS ST 144 | C44: ARDWICK | D44: Ardwick
A45: 167502 | B45: F3810 PICCADILLY STN | C45: ARDWICK | D45: Ardwick
A46: 171355 | B46: F2995 GOODWOOD AVE/LARCHWOOD CL | C46: ASHTON ON MERSEY | D46: Ashton On Mersey
A47: 171473 | B47: F2995 GOODWOOD AVE/LARCHWOOD CL | C47: ASHTON ON MERSEY | D47: Ashton On Mersey
A48: 171799 | B48: F2995 GOODWOOD AVE/LARCHWOOD CL | C48: ASHTON ON MERSEY | D48: Ashton On Mersey
A49: 171007 | B49: F2577 CARRINGTON LN | C49: ASHTON ON MERSEY | D49: Ashton On Mersey
A50: 171163 | B50: F2577 CARRINGTON LN | C50: ASHTON ON MERSEY | D50: Ashton On Mersey
A51: 171267 | B51: F2577 CARRINGTON LN | C51: ASHTON ON MERSEY | D51: Ashton On Mersey
A52: 171457 | B52: F2577 CARRINGTON LN | C52: ASHTON ON MERSEY | D52: Ashton On Mersey
A53: 171489 | B53: F2577 CARRINGTON LN | C53: ASHTON ON MERSEY | D53: Ashton On Mersey
A54: 171579 | B54: F2577 CARRINGTON LN | C54: ASHTON ON MERSEY | D54: Ashton On Mersey
A55: 171602 | B55: F2577 CARRINGTON LN | C55: ASHTON ON MERSEY | D55: Ashton On Mersey
A56: 171396 | B56: F1408 KENILWORTH RD | C56: ASHTON ON MERSEY | D56: Ashton On Mersey
A57: 171455 | B57: F1408 KENILWORTH RD | C57: ASHTON ON MERSEY | D57: Ashton On Mersey
A58: 171841 | B58: F1408 KENILWORTH RD | C58: ASHTON ON MERSEY | D58: Ashton On Mersey
A59: 172472 | B59: F1408 KENILWORTH RD | C59: ASHTON ON MERSEY | D59: Ashton On Mersey
A60: 178206 | B60: F1408 KENILWORTH RD | C60: ASHTON ON MERSEY | D60: Ashton On Mersey
A61: 178219 | B61: F1408 KENILWORTH RD | C61: ASHTON ON MERSEY | D61: Ashton On Mersey
A62: 178220 | B62: F1408 KENILWORTH RD | C62: ASHTON ON MERSEY | D62: Ashton On Mersey
A63: 171164 | B63: F1409 TAVISTOCK RD | C63: ASHTON ON MERSEY | D63: Ashton On Mersey
A64: 171474 | B64: F1409 TAVISTOCK RD | C64: ASHTON ON MERSEY | D64: Ashton On Mersey
A65: 171509 | B65: F1409 TAVISTOCK RD | C65: ASHTON ON MERSEY | D65: Ashton On Mersey
A66: 171517 | B66: F1409 TAVISTOCK RD | C66: ASHTON ON MERSEY | D66: Ashton On Mersey
A67: 171519 | B67: F1409 TAVISTOCK RD | C67: ASHTON ON MERSEY | D67: Ashton On Mersey
A68: 171779 | B68: F1409 TAVISTOCK RD | C68: ASHTON ON MERSEY | D68: Ashton On Mersey
A69: 171812 | B69: F1409 TAVISTOCK RD | C69: ASHTON ON MERSEY | D69: Ashton On Mersey
A70: 178066 | B70: F1409 TAVISTOCK RD | C70: ASHTON ON MERSEY | D70: Ashton On Mersey
A71: 171032 | B71: F1410 BUCKFAST RD | C71: ASHTON ON MERSEY | D71: Ashton On Mersey
A72: 171146 | B72: F1410 BUCKFAST RD | C72: ASHTON ON MERSEY | D72: Ashton On Mersey
A73: 171348 | B73: F1410 BUCKFAST RD | C73: ASHTON ON MERSEY | D73: Ashton On Mersey
A74: 171408 | B74: F1410 BUCKFAST RD | C74: ASHTON ON MERSEY | D74: Ashton On Mersey
A75: 171696 | B75: F1410 BUCKFAST RD | C75: ASHTON ON MERSEY | D75: Ashton On Mersey
A76: 171031 | B76: F1411 CHAPEL LN | C76: ASHTON ON MERSEY | D76: Ashton On Mersey
A77: 171183 | B77: F1411 CHAPEL LN | C77: ASHTON ON MERSEY | D77: Ashton On Mersey
A78: 171245 | B78: F1411 CHAPEL LN | C78: ASHTON ON MERSEY | D78: Ashton On Mersey
A79: 171505 | B79: F1411 CHAPEL LN | C79: ASHTON ON MERSEY | D79: Ashton On Mersey
A80: 177507 | B80: F1411 CHAPEL LN | C80: ASHTON ON MERSEY | D80: Ashton On Mersey
A81: 178252 | B81: F1411 CHAPEL LN | C81: ASHTON ON MERSEY | D81: Ashton On Mersey
A82: 171258 | B82: F1412 HARBORO RD | C82: ASHTON ON MERSEY | D82: Ashton On Mersey
A83: 171377 | B83: F1412 HARBORO RD | C83: ASHTON ON MERSEY | D83: Ashton On Mersey
A84: 171397 | B84: F1412 HARBORO RD | C84: ASHTON ON MERSEY | D84: Ashton On Mersey
A85: 171437 | B85: F1412 HARBORO RD | C85: ASHTON ON MERSEY | D85: Ashton On Mersey
A86: 171544 | B86: F1412 HARBORO RD | C86: ASHTON ON MERSEY | D86: Ashton On Mersey
A87: 171582 | B87: F1412 HARBORO RD | C87: ASHTON ON MERSEY | D87: Ashton On Mersey
A88: 178119 | B88: F1412 HARBORO RD | C88: ASHTON ON MERSEY | D88: Ashton On Mersey
A89: 178455 | B89: F1412 HARBORO RD | C89: ASHTON ON MERSEY | D89: Ashton On Mersey
A90: 178670 | B90: F1412 HARBORO RD | C90: ASHTON ON MERSEY | D90: Ashton On Mersey
A91: 171084 | B91: L83 GLEBELANDS RD (BAGULEY) | C91: BAGULEY | D91: Baguley
A92: 171293 | B92: L83 GLEBELANDS RD (BAGULEY) | C92: BAGULEY | D92: Baguley
A93: 171320 | B93: L83 GLEBELANDS RD (BAGULEY) | C93: BAGULEY | D93: Baguley
A94: 171347 | B94: L83 GLEBELANDS RD (BAGULEY) | C94: BAGULEY | D94: Baguley
A95: 171667 | B95: L83 GLEBELANDS RD (BAGULEY) | C95: BAGULEY | D95: Baguley
A96: 171733 | B96: L83 GLEBELANDS RD (BAGULEY) | C96: BAGULEY | D96: Baguley
A97: 172266 | B97: L83 GLEBELANDS RD (BAGULEY) | C97: BAGULEY | D97: Baguley
A98: 177557 | B98: L83 GLEBELANDS RD (BAGULEY) | C98: BAGULEY | D98: Baguley
A99: 178132 | B99: L83 GLEBELANDS RD (BAGULEY) | C99: BAGULEY | D99: Baguley
A100: 178615 | B100: L83 GLEBELANDS RD (BAGULEY) | C100: BAGULEY | D100: Baguley
A101: 178619 | B101: L83 GLEBELANDS RD (BAGULEY) | C101: BAGULEY | D101: Baguley
A102: 171627 | B102: L347 WYTHENSHAWE HOSP 1998/NTL | C102: BAGULEY | D102: Baguley
A103: 171883 | B103: L347 WYTHENSHAWE HOSP 1998/NTL | C103: BAGULEY | D103: Baguley
A104: 172405 | B104: L347 WYTHENSHAWE HOSP 1998/NTL | C104: BAGULEY | D104: Baguley
A105: 177242 | B105: L347 WYTHENSHAWE HOSP 1998/NTL | C105: BAGULEY | D105: Baguley
A106: 177243 | B106: L347 WYTHENSHAWE HOSP 1998/NTL | C106: BAGULEY | D106: Baguley
A107: 177244 | B107: L347 WYTHENSHAWE HOSP 1998/NTL | C107: BAGULEY | D107: Baguley
A108: 177966 | B108: L347 WYTHENSHAWE HOSP 1998/NTL | C108: BAGULEY | D108: Baguley
A109: 178093 | B109: L347 WYTHENSHAWE HOSP 1998/NTL | C109: BAGULEY | D109: Baguley
A110: 178294 | B110: L347 WYTHENSHAWE HOSP 1998/NTL | C110: BAGULEY | D110: Baguley
A111: 171020 | B111: L258 BAGULEY LOCAL SW STN | C111: BAGULEY | D111: Baguley
A112: 171030 | B112: L258 BAGULEY LOCAL SW STN | C112: BAGULEY | D112: Baguley
A113: 171148 | B113: L258 BAGULEY LOCAL SW STN | C113: BAGULEY | D113: Baguley
A114: 171168 | B114: L258 BAGULEY LOCAL SW STN | C114: BAGULEY | D114: Baguley
A115: 171213 | B115: L258 BAGULEY LOCAL SW STN | C115: BAGULEY | D115: Baguley
A116: 171301 | B116: L258 BAGULEY LOCAL SW STN | C116: BAGULEY | D116: Baguley
A117: 171306 | B117: L258 BAGULEY LOCAL SW STN | C117: BAGULEY | D117: Baguley
A118: 171522 | B118: L258 BAGULEY LOCAL SW STN | C118: BAGULEY | D118: Baguley
A119: 171715 | B119: L258 BAGULEY LOCAL SW STN | C119: BAGULEY | D119: Baguley
A120: 171768 | B120: L258 BAGULEY LOCAL SW STN | C120: BAGULEY | D120: Baguley
A121: 171802 | B121: L258 BAGULEY LOCAL SW STN | C121: BAGULEY | D121: Baguley
A122: 171834 | B122: L258 BAGULEY LOCAL SW STN | C122: BAGULEY | D122: Baguley
A123: 171847 | B123: L258 BAGULEY LOCAL SW STN | C123: BAGULEY | D123: Baguley
A124: 171865 | B124: L258 BAGULEY LOCAL SW STN | C124: BAGULEY | D124: Baguley
A125: 171867 | B125: L258 BAGULEY LOCAL SW STN | C125: BAGULEY | D125: Baguley
A126: 172279 | B126: L258 BAGULEY LOCAL SW STN | C126: BAGULEY | D126: Baguley
A127: 172602 | B127: L258 BAGULEY LOCAL SW STN | C127: BAGULEY | D127: Baguley
A128: 172611 | B128: L258 BAGULEY LOCAL SW STN | C128: BAGULEY | D128: Baguley
A129: 177114 | B129: L258 BAGULEY LOCAL SW STN | C129: BAGULEY | D129: Baguley
A130: 177276 | B130: L258 BAGULEY LOCAL SW STN | C130: BAGULEY | D130: Baguley
A131: 177653 | B131: L258 BAGULEY LOCAL SW STN | C131: BAGULEY | D131: Baguley
A132: 171372 | B132: L381 MOOR RD BAGULEY/DRESSER RAND | C132: BAGULEY | D132: Baguley
A133: 171493 | B133: L381 MOOR RD BAGULEY/DRESSER RAND | C133: BAGULEY | D133: Baguley
A134: 171539 | B134: L381 MOOR RD BAGULEY/DRESSER RAND | C134: BAGULEY | D134: Baguley
A135: 171548 | B135: L381 MOOR RD BAGULEY/DRESSER RAND | C135: BAGULEY | D135: Baguley
A136: 171588 | B136: L381 MOOR RD BAGULEY/DRESSER RAND | C136: BAGULEY | D136: Baguley
A137: 171766 | B137: L381 MOOR RD BAGULEY/DRESSER RAND | C137: BAGULEY | D137: Baguley
A138: 177362 | B138: L381 MOOR RD BAGULEY/DRESSER RAND | C138: BAGULEY | D138: Baguley
A139: 177843 | B139: L381 MOOR RD BAGULEY/DRESSER RAND | C139: BAGULEY | D139: Baguley
A140: 178011 | B140: L381 MOOR RD BAGULEY/DRESSER RAND | C140: BAGULEY | D140: Baguley
A141: 178344 | B141: L381 MOOR RD BAGULEY/DRESSER RAND | C141: BAGULEY | D141: Baguley
A142: 171175 | B142: L1717 NTL/CEGB TIMPSON RD | C142: BAGULEY | D142: Baguley
A143: 171803 | B143: L1717 NTL/CEGB TIMPSON RD | C143: BAGULEY | D143: Baguley
A144: 172414 | B144: L1717 NTL/CEGB TIMPSON RD | C144: BAGULEY | D144: Baguley
A145: 177331 | B145: L1717 NTL/CEGB TIMPSON RD | C145: BAGULEY | D145: Baguley
A146: 171076 | B146: L372 ROTALAC PLASTICS | C146: BAGULEY | D146: Baguley
A147: 171106 | B147: L372 ROTALAC PLASTICS | C147: BAGULEY | D147: Baguley
A148: 171153 | B148: L372 ROTALAC PLASTICS | C148: BAGULEY | D148: Baguley
A149: 171243 | B149: L372 ROTALAC PLASTICS | C149: BAGULEY | D149: Baguley
A150: 171337 | B150: L372 ROTALAC PLASTICS | C150: BAGULEY | D150: Baguley
A151: 171663 | B151: L372 ROTALAC PLASTICS | C151: BAGULEY | D151: Baguley
A152: 171709 | B152: L372 ROTALAC PLASTICS | C152: BAGULEY | D152: Baguley
A153: 171716 | B153: L372 ROTALAC PLASTICS | C153: BAGULEY | D153: Baguley
A154: 172269 | B154: L372 ROTALAC PLASTICS | C154: BAGULEY | D154: Baguley
A155: 172493 | B155: L372 ROTALAC PLASTICS | C155: BAGULEY | D155: Baguley
A156: 172509 | B156: L372 ROTALAC PLASTICS | C156: BAGULEY | D156: Baguley
A157: 172546 | B157: L372 ROTALAC PLASTICS | C157: BAGULEY | D157: Baguley
A158: 177640 | B158: L372 ROTALAC PLASTICS | C158: BAGULEY | D158: Baguley
A159: 177721 | B159: L372 ROTALAC PLASTICS | C159: BAGULEY | D159: Baguley
A160: 177998 | B160: L372 ROTALAC PLASTICS | C160: BAGULEY | D160: Baguley
A161: 178437 | B161: L372 ROTALAC PLASTICS | C161: BAGULEY | D161: Baguley
A162: 178545 | B162: L372 ROTALAC PLASTICS | C162: BAGULEY | D162: Baguley
A163: 178623 | B163: L372 ROTALAC PLASTICS | C163: BAGULEY | D163: Baguley
A164: 171083 | B164: L380 COMPASS POINT | C164: BAGULEY | D164: Baguley
A165: 171679 | B165: L380 COMPASS POINT | C165: BAGULEY | D165: Baguley
A166: 171681 | B166: L380 COMPASS POINT | C166: BAGULEY | D166: Baguley
A167: 177238 | B167: L380 COMPASS POINT | C167: BAGULEY | D167: Baguley
A168: 177836 | B168: L380 COMPASS POINT | C168: BAGULEY | D168: Baguley
A169: 178153 | B169: L380 COMPASS POINT | C169: BAGULEY | D169: Baguley
A170: 178360 | B170: L380 COMPASS POINT | C170: BAGULEY | D170: Baguley
A171: 171229 | B171: L348 FOURACRES RD/DRESSER RAND | C171: BAGULEY | D171: Baguley
A172: 171312 | B172: L348 FOURACRES RD/DRESSER RAND | C172: BAGULEY | D172: Baguley
A173: 171321 | B173: L348 FOURACRES RD/DRESSER RAND | C173: BAGULEY | D173: Baguley
A174: 171370 | B174: L348 FOURACRES RD/DRESSER RAND | C174: BAGULEY | D174: Baguley
A175: 171616 | B175: L348 FOURACRES RD/DRESSER RAND | C175: BAGULEY | D175: Baguley
A176: 171710 | B176: L348 FOURACRES RD/DRESSER RAND | C176: BAGULEY | D176: Baguley
A177: 177701 | B177: L348 FOURACRES RD/DRESSER RAND | C177: BAGULEY | D177: Baguley
A178: 178120 | B178: L348 FOURACRES RD/DRESSER RAND | C178: BAGULEY | D178: Baguley
A179: 178192 | B179: L348 FOURACRES RD/DRESSER RAND | C179: BAGULEY | D179: Baguley
A180: 171012 | B180: L231 BENCHILL NETWORK | C180: BENCHILL | D180: Benchill
A181: 171079 | B181: L231 BENCHILL NETWORK | C181: BENCHILL | D181: Benchill
A182: 171375 | B182: L231 BENCHILL NETWORK | C182: BENCHILL | D182: Benchill
A183: 177307 | B183: L231 BENCHILL NETWORK | C183: BENCHILL | D183: Benchill
A184: 171087 | B184: L401 HOLLYHEDGE RD 2A | C184: BENCHILL | D184: Benchill
A185: 171105 | B185: L401 HOLLYHEDGE RD 2A | C185: BENCHILL | D185: Benchill
A186: 171420 | B186: L401 HOLLYHEDGE RD 2A | C186: BENCHILL | D186: Benchill
A187: 171430 | B187: L401 HOLLYHEDGE RD 2A | C187: BENCHILL | D187: Benchill
A188: 171606 | B188: L401 HOLLYHEDGE RD 2A | C188: BENCHILL | D188: Benchill
A189: 178606 | B189: L401 HOLLYHEDGE RD 2A | C189: BENCHILL | D189: Benchill
A190: 171426 | B190: L202 HOLLYHEDGE RD/BENCHILL CT | C190: BENCHILL | D190: Benchill
A191: 171701 | B191: L202 HOLLYHEDGE RD/BENCHILL CT | C191: BENCHILL | D191: Benchill
A192: 177838 | B192: L202 HOLLYHEDGE RD/BENCHILL CT | C192: BENCHILL | D192: Benchill
A193: 171100 | B193: L1989 WEST RD/NIELDS BROW | C193: BOWDON | D193: Bowdon
A194: 171104 | B194: L1989 WEST RD/NIELDS BROW | C194: BOWDON | D194: Bowdon
A195: 171256 | B195: L1989 WEST RD/NIELDS BROW | C195: BOWDON | D195: Bowdon
A196: 171360 | B196: L1989 WEST RD/NIELDS BROW | C196: BOWDON | D196: Bowdon
A197: 171363 | B197: L1989 WEST RD/NIELDS BROW | C197: BOWDON | D197: Bowdon
A198: 171367 | B198: L1989 WEST RD/NIELDS BROW | C198: BOWDON | D198: Bowdon
A199: 171471 | B199: L1989 WEST RD/NIELDS BROW | C199: BOWDON | D199: Bowdon
A200: 171563 | B200: L1989 WEST RD/NIELDS BROW | C200: BOWDON | D200: Bowdon
... 4300 more rows
